Cogmind - Beta 12 X6 @@@ ROGUE MODE // 2023.02.15 @ 19:30:13 Player: cptwinky Result: Establishing Free Derelict Territories! Performance ------------- Evolutions (9) 4500 Regions Visited (40) 8000 Robots Destroyed (796) 3980 Value Destroyed (36971) 36971 Prototype IDs (103) 2060 Alien Tech Used (3) 600 Bonus (40887) 40887 TOTAL SCORE: 96998 Bonus ------- High Alert Combat Kills 4728 Follower Combat Kills 3750 Entered Garrisons 1000 Network Hubs Disabled 400 Met Imprinter 300 Met Zhirov 300 Met Warlord at Base 500 MAIN.C Attacked Warlord 500 Warlord Defense Kills 960 Built Enhanced Grunts 300 A7 Reached Mainframe 300 Met R17 at Cetus 500 Met R17 at Research 2000 Met Warlord at Research 2000 Destroyed MAIN.C Guards 500 Met MAIN.C 5000 Hacked MAIN.C 300 Destroyed MAIN.C Shell 5000 Destroyed MAIN.C 10000 Met Warlord at Command 2000 Win 3000 Friendly Fire -2451 Cogmind --------- Core Integrity 848/1600 Matter 206/300 Energy 1515/1515 System Corruption 8% Temperature Cool (0) Movement Treading (146) Location Free Derelict Territories Parts ------- > --- POWER (3) -------- Neutrino Core Vortex Chain Reactor > --- PROPULSION (6) --- Biometal Heavy Treads Experimental Biometal Heavy Treads Advanced Heavy Siege Treads > --- UTILITY (14) ----- Advanced Coolant Injector Huge Storage Unit Experimental Energy Well Enhanced Optical Array Experimental Signal Interpreter Advanced Targeting Computer Tactical Coordination Suite Experimental Melee Analysis Suite Advanced Target Analyzer Experimental Core Analyzer EM Disruption Field Antimissile System System Mapper Advanced Corruption Screen > --- WEAPON (2) ------- Advanced Remote Datajack Particle Cleaver > --- INVENTORY (25) --- Heavy Siege Treads Advanced Heat Sink Experimental Energy Well (600) YI-UF0's Bottomless Matter Pit (1500) Improved Focal Shield Improved Focal Shield Antimissile System Advanced Component Analysis Suite Advanced Trap Extractor (8/8 Fire) Enhanced Quantum Rifle Compact HERF Cannon Enhanced Nova Cannon Potential Cannon Potential Cannon Linear Accelerator Heavy Proton Missile Launcher Gamma Bomb Array Tiamat Missile Launcher Tiamat Missile Launcher Hellfire Missile Launcher Hellfire Missile Launcher Advanced Datajack Peak State ------------ > --- POWER ------------ Mini Fusion Reactor Particle Reactor Quantum Reactor > --- PROPULSION ------- Advanced Heavy Siege Treads Advanced Heavy Siege Treads Advanced Heavy Siege Treads > --- UTILITY ---------- Experimental Cooling System Huge Storage Unit Enhanced Optical Array Experimental Signal Interpreter Experimental Targeting Computer Tactical Coordination Suite Advanced Target Analyzer Experimental Core Analyzer Advanced Weapon Cycler Advanced Transmission Jammer Centrium Medium Armor Plating Experimental EM Disruption Field Advanced Hacking Suite Advanced Corruption Screen > --- WEAPON ----------- Enhanced Quantum Rifle Heavy Quantum Rifle > --- INVENTORY -------- Quantum Reactor Vortex Chain Reactor Heavy Treads Experimental Energy Well Experimental Energy Well YI-UF0's Bottomless Matter Pit Long-range Sensor Array Antimissile System Advanced Hacking Suite System Mapper Advanced Component Analysis Suite Advanced Trap Extractor HERF Cannon Potential Cannon Potential Cannon Gamma Bomb Array Tiamat Missile Launcher Tiamat Missile Launcher Advanced Datajack [Rating: 216] Favorites ----------- Power Heavy Deuterium Engine Engine Heavy Deuterium Engine Power Core Light Neutrino Core Reactor Reinforced Antimatter Reactor Propulsion Light Treads Treads Light Treads Leg Carbon-fiber Leg Wheel Armored Huge Wheel Hover Unit Cooled Antigrav System Flight Unit Cooled Nuclear Pulse Thruster Utility Huge Storage Unit Device Advanced Transmission Jammer Storage Huge Storage Unit Processor Advanced Targeting Computer Hackware Makeshift Hacking Suite Protection Centrium Medium Armor Plating Weapon Hypervelocity Mass Driver Energy Gun Heavy Dispersion Rifle Energy Cannon Nova Cannon Ballistic Gun Advanced KE Penetrator Ballistic Cannon Hypervelocity Mass Driver Launcher Tiamat Missile Launcher Special Weapon RU-N14's Throwing Claymores Impact Weapon Maul Slashing Weapon Mining Claw Special Melee Weapon Advanced Datajack Build | -11 -10 -10 -9 -9 -8 -8 -8 -8 -8 -8 -8 -8 -8 -8 -8 -7 -7 -7 -7 -6 -6 -6 -6 -6 -6 -5 -5 -5 -5 -4 -4 -4 -4 -4 -3 -3 -3 -2 -1 -1 ------- Run | Jun Mat Min Mat Min Mat Gar Mat Gar Mat Gar Mat Gar Mat Gar Mat Fac Low Low Zio Pro Fac Ext Cet Arc Hub Fac Upp Upp War Pro Fac Upp Upp Zhi Pro Res Tes Res Acc Com Slots Evolved 18 | . . . 2 . 2 . . . . . . . . . . 2 . . . . 2 . . . . 2 . . . . 2 . . . . 2 . 2 2 . Power 2 | . . . . . . . . . . . . . . . . . . . . . 1 . . . . . . . . . . . . . . 1 . . . . Propulsion 4 | . . . 1 . . . . . . . . . . . . 1 . . . . . . . . . 1 . . . . 1 . . . . . . . . . Utility 12 | . . . 1 . 2 . . . . . . . . . . 1 . . . . 1 . . . . 1 . . . . 1 . . . . 1 . 2 2 . Weapon . | . . . . . . . . . . . . . . . . . . . . . . . . . . . . . . . . . . . . . . . . . Parts Attached 887 | 3 6 7 18 5 5 12 10 6 22 16 10 10 13 37 18 50 20 4 10 2 50 45 17 2 3 39 15 14 22 10 45 36 35 11 34 40 46 25 55 59 Power 59 | . 1 1 2 1 . . 1 1 1 . 1 . . 3 2 3 1 . 1 . 2 3 2 . . 1 . 4 1 . 1 2 2 2 . 5 4 5 3 3 Engine 26 | . 1 1 2 1 . . 1 1 1 . 1 . . 3 1 3 1 . 1 . 1 3 1 . . . . 3 . . . . . . . . . . . . Core 5 | . . . . . . . . . . . . . . . 1 . . . . . . . . . . 1 . 1 . . . . . . . 1 . . . 1 Reactor 28 | . . . . . . . . . . . . . . . . . . . . . 1 . 1 . . . . . 1 . 1 2 2 2 . 4 4 5 3 2 Propulsion 116 | 2 1 . 9 . 3 4 5 . 5 2 2 1 5 3 2 9 4 . . . 2 7 2 . . 6 1 1 4 . 6 . . 2 . 3 5 4 9 7 Treads 102 | 2 1 . 9 . 3 4 5 . 5 2 2 1 5 3 2 8 4 . . . 1 6 2 . . 5 1 1 2 . 6 . . 1 . 3 4 4 7 3 Leg 2 | . . . . . . . . . . . . . . . . . . . . . . . . . . 1 . . . . . . . . . . 1 . . . Wheel 9 | . . . . . . . . . . . . . . . . 1 . . . . 1 1 . . . . . . . . . . . . . . . . 2 4 Hover 1 | . . . . . . . . . . . . . . . . . . . . . . . . . . . . . 1 . . . . . . . . . . . Flight 2 | . . . . . . . . . . . . . . . . . . . . . . . . . . . . . 1 . . . . 1 . . . . . . Utility 362 | . 3 . 3 . 2 3 3 1 9 9 3 3 3 13 5 17 11 3 4 . 27 17 3 . 3 21 8 4 8 6 18 18 23 4 19 19 24 14 16 15 Device 238 | . 1 . . . . . . . 2 2 . 1 1 8 4 10 8 2 4 . 19 13 . . . 16 6 . 7 5 14 18 21 2 17 13 18 9 7 10 Storage 10 | . 1 . 1 . . . . . . . . . . . . 1 1 . . . 2 1 . . . . . . . . . . . . . . 1 1 1 . Processor 26 | . 1 . 1 . 1 . 1 1 1 . . . . . . 2 . . . . 2 . . . 1 . 2 . 1 . 1 . 2 . . . 3 1 1 4 Hackware 14 | . . . . . . . . . 2 . 1 . . 3 . 1 . . . . 1 . . . . . . . . . . . . 1 . . 1 . 3 1 Protection 74 | . . . 1 . 1 3 2 . 4 7 2 2 2 2 1 3 2 1 . . 3 3 3 . 2 5 . 4 . 1 3 . . 1 2 6 1 3 4 . Artifact . | . . . . . . . . . . . . . . . . . . . . . . . . . . . . . . . . . . . . . . . . . Weapon 350 | 1 1 6 4 4 . 5 1 4 7 5 4 6 5 18 9 21 4 1 5 2 19 18 10 2 . 11 6 5 9 4 20 16 10 3 15 13 13 2 27 34 Energy Gun 38 | . 1 2 . . . . . . . . . . . . . . . . . . 3 9 1 . . . . . . . . . . . . . 1 . 12 9 Energy Cannon 63 | . . . . . . . . . . . . . . . . . . . . . 1 4 . . . 2 1 2 2 . 6 5 1 1 3 4 5 1 11 14 Ballistic Gun 55 | 1 . 2 . . . . . . 4 3 3 3 3 2 . 2 1 1 . . 1 . 3 1 . 6 3 3 4 2 7 . . . . . . . . . Ballistic Cannon 86 | . . . 3 2 . 2 1 2 1 . . . . 9 5 9 3 . 3 1 7 . 4 . . . . . . . 4 6 5 1 8 6 4 . . . Launcher 53 | . . . 1 2 . 3 . 2 2 2 1 3 1 4 4 6 . . . . 1 . 1 . . 1 . . . . . 1 2 1 4 2 2 1 3 3 Special Weapon 19 | . . . . . . . . . . . . . . . . . . . 1 1 3 2 . . . . . . 1 2 1 4 . . . . . . 1 3 Impact Weapon 8 | . . . . . . . . . . . . . . 2 . 2 . . . . . . . . . 2 1 . 1 . . . . . . . . . . . Slashing Weapon 5 | . . 2 . . . . . . . . . . . . . . . . . . . 1 . . . . . . . . . . . . . . . . . 2 Piercing Weapon . | . . . . . . . . . . . . . . . . . . . . . . . . . . . . . . . . . . . . . . . . . Special Melee Weapon 23 | . . . . . . . . . . . . . 1 1 . 2 . . 1 . 3 2 1 1 . . 1 . 1 . 2 . 2 . . 1 1 . . 3 Unidentified Prototypes 40 | . . . . . . . . . . . 1 . . . . 1 . . 1 . 8 1 4 . . 1 1 . 7 . . 1 . 4 . 2 2 3 . 3 Parts Lost 87 | . 1 . . . . 3 2 . 1 5 1 . . 1 . 2 2 1 . . 1 6 . . 1 1 . 1 1 1 3 . . . . 18 2 4 24 5 Power 12 | . 1 . . . . . 1 . . . . . . . . 1 . . . . . 1 . . . . . . . . . . . . . 2 . 2 3 1 Propulsion 18 | . . . . . . 1 . . . 2 . . . . . . . . . . . 3 . . . . . . . . 1 . . . . 3 . . 7 1 Utility 41 | . . . . . . 2 . . . 2 1 . . 1 . . 1 1 . . 1 2 . . 1 . . 1 . 1 1 . . . . 10 1 1 12 2 Weapon 16 | . . . . . . . 1 . 1 1 . . . . . 1 1 . . . . . . . . 1 . . 1 . 1 . . . . 3 1 1 2 1 Highest Loss Streak 13 | . 1 . . . . 1 2 . 1 2 1 . . 1 . 1 2 1 . . 1 2 . . 1 1 . 1 1 1 2 . . . . 13 1 3 5 1 To Critical Strikes 5 | . . . . . . . . . . . . . . . . . . . . . . 2 . . . . . . . . 1 . . . . 1 . . 1 . Average Slot Usage (%) 88 | . 99 100 88 88 90 87 90 90 94 99 99 100 99 99 99 92 87 92 91 92 92 94 92 86 86 85 88 87 81 81 82 79 84 81 83 82 69 76 77 81 Engine 5 | . 13 14 11 11 9 9 9 9 9 9 8 9 9 9 4 6 6 7 7 7 6 12 13 13 13 6 5 3 . . . . . . . . . . . . Reactor 2 | . . . . . . . . . . . . . . . . . . . . . 5 . . . . . . . 3 5 5 6 10 10 10 10 8 12 9 6 Treads 21 | . 27 28 32 33 27 27 27 27 27 27 27 27 27 26 27 29 22 30 30 30 25 14 19 13 13 11 17 17 16 17 19 15 15 14 15 13 12 13 11 9 Device 7 | . 2 . . . . . . . . . . . . 3 9 14 9 7 7 7 6 11 13 13 8 11 10 6 8 11 12 10 10 10 10 13 13 12 13 15 Storage 7 | . 14 14 11 11 9 9 9 9 9 9 9 9 9 9 9 7 7 7 7 7 6 6 6 6 6 5 5 5 5 5 5 5 5 5 5 4 5 4 4 8 Processor 15 | . 10 14 11 11 18 18 18 18 18 18 18 18 18 18 18 15 15 15 15 15 13 13 13 13 17 17 17 17 17 11 13 15 15 15 15 13 11 17 21 17 Hackware 2 | . . . . . . . . . 3 . 8 . . . . . . . . . 6 6 6 6 6 5 5 5 5 5 5 5 5 5 5 3 3 4 5 8 Protection 8 | . . . 10 11 18 15 18 18 14 16 9 18 17 14 9 7 7 7 7 7 5 7 6 6 6 5 5 9 6 10 8 10 10 8 9 9 5 6 2 . Energy Gun 1 | . 13 12 . . . . . . . . . . . . . . . . . . . 12 . . . . . . . . . . . . . . . . 4 1 Ballistic Gun 4 | . 14 12 . . . . . . 7 17 18 17 17 1 . . . 4 . . . . 6 13 13 10 10 10 4 11 8 . . . . . . . . . Ballistic Cannon 5 | . . . 10 10 9 8 9 8 5 . . . . 15 17 6 12 9 13 14 10 . 5 . . . . . . . . 9 9 5 9 6 1 3 . . Naked Turns . | . . . . . . . . . . . . . . . . . . . . . . . . . . . . . . . . . . . . . . . . . Heaviest Build 203 | 10 47 51 103 103 106 110 106 106 116 112 110 112 109 121 116 117 126 126 128 124 147 145 141 122 134 125 125 140 157 158 166 172 175 167 170 203 161 182 174 171 Greatest Support 240 | 40 40 40 60 60 60 60 69 66 69 69 68 62 63 63 65 88 112 112 112 112 112 100 160 160 160 170 167 168 168 168 235 235 235 235 235 235 200 240 240 240 Greatest Overweight (x) 40 | . 1 1 1 1 1 1 1 1 1 1 1 1 1 2 1 4 4 1 1 1 5 6 1 40 . 1 . . 1 1 . . . . . 2 2 . 14 14 Average Overweight (x) . | . . 1 . 1 1 1 1 1 1 1 1 1 1 1 1 1 2 1 1 1 1 3 . 12 . . . . . . . . . . . . . . . 2 Largest Inventory Capacity 25 | 8 20 20 25 25 25 25 25 25 25 25 25 25 25 25 25 25 25 25 25 25 25 25 25 25 25 25 25 25 25 25 25 25 25 25 25 25 25 25 25 25 Average Capacity 24 | 8 19 20 24 25 25 25 25 25 25 25 25 25 25 25 25 25 25 25 25 25 25 25 25 25 25 25 25 25 25 25 25 25 25 25 25 25 25 25 25 25 Most Carried 25 | 6 18 20 25 25 25 25 25 25 25 25 25 25 25 25 25 25 25 25 25 25 25 25 25 25 25 25 25 25 25 25 25 25 25 25 25 25 25 25 25 25 Average Carried 23 | 6 12 19 23 24 24 24 23 24 24 23 24 24 24 24 24 24 24 24 24 25 24 24 24 24 24 24 24 24 24 24 24 24 23 24 24 24 23 24 23 24 Final Capacity 25 | 8 20 20 25 25 25 25 25 25 25 25 25 25 25 25 25 25 25 25 25 25 25 25 25 25 25 25 25 25 25 25 25 25 25 25 25 25 25 25 25 25 Final Carried 25 | 6 18 20 25 25 25 24 23 25 25 24 25 24 25 25 25 24 25 23 25 25 25 25 25 25 24 25 25 25 25 24 25 23 25 25 25 17 24 24 23 25 Class Distribution -------------------- 49% | Mutant 31% | Scavenger-Mutant 10% | Scavenger-Skirmisher 3% | Trapper-Mutant Dominant Class ---------------- Mutant | -10/Materials Mutant | -10/Mines Mutant | -9/Materials Mutant | -9/Mines Mutant | -8/Materials Scavenger-Mutant | -8/Garrison Mutant | -8/Materials Mutant | -8/Garrison Mutant | -8/Materials Mutant | -8/Garrison Scavenger-Mutant | -8/Materials Mutant | -8/Garrison Mutant | -8/Materials Mutant | -8/Garrison Scavenger-Mutant | -8/Materials Mutant | -7/Factory Mutant | -7/Lower Caves Mutant | -7/Lower Caves Mutant | -7/Zion Mutant | -6/Proximity Caves Mutant | -6/Factory Mutant | -6/Extension Scavenger-Mutant | -6/Cetus Scavenger-Mutant | -6/Archives Scavenger-Mutant | -6/Hub_04(d) Scavenger-Mutant | -5/Factory Mutant | -5/Upper Caves Scavenger-Mutant | -5/Upper Caves Scavenger-Mutant | -5/Warlord Scavenger-Mutant | -4/Proximity Caves Scavenger-Mutant | -4/Factory Scavenger-Skirmisher | -4/Upper Caves Scavenger-Skirmisher | -4/Upper Caves Scavenger-Mutant | -4/Zhirov Scavenger-Mutant | -3/Proximity Caves Scavenger-Mutant | -3/Research Trapper-Mutant | -3/Testing Trapper-Skirmisher | -2/Research Scavenger-Mutant | -1/Access Scavenger-Mutant | -1/Command Resources | -11 -10 -10 -9 -9 -8 -8 -8 -8 -8 -8 -8 -8 -8 -8 -8 -7 -7 -7 -7 -6 -6 -6 -6 -6 -6 -5 -5 -5 -5 -4 -4 -4 -4 -4 -3 -3 -3 -2 -1 -1 ----------- Run | Jun Mat Min Mat Min Mat Gar Mat Gar Mat Gar Mat Gar Mat Gar Mat Fac Low Low Zio Pro Fac Ext Cet Arc Hub Fac Upp Upp War Pro Fac Upp Upp Zhi Pro Res Tes Res Acc Com Matter Collected 31399 | 211 134 273 1535 295 255 1046 807 463 746 1153 424 391 596 1215 568 1757 741 816 53 138 1159 924 368 140 175 399 686 543 685 335 1308 1068 1702 120 1138 2212 1202 2011 751 856 Remotely 57 | . . . . . . . . . . . . . 57 . . . . . . . . . . . . . . . . . . . . . . . . . . . Salvage Created 31454 | . 366 165 1141 157 436 367 596 289 1178 815 623 633 766 1030 681 1675 230 298 . 179 843 1321 117 274 603 507 296 1144 524 770 2158 795 725 160 611 1860 1600 622 2900 1999 Parts 1605 | . 32 9 85 19 31 26 32 24 77 53 35 36 47 63 50 99 11 9 . 1 43 59 6 17 20 25 13 45 15 39 113 34 29 3 22 63 74 17 144 85 Haulers Intercepted 27 | . 1 . 6 . 1 . 4 . 4 . 3 . 3 . . 2 . . . . . . . . . . . . . . 1 . . . . . . 1 1 . Recyclers Shooed 14 | . . . . . . . . . 1 . 1 . . . 3 2 . . . . 2 . . . . . 1 . . . 2 . . . . . . . 2 . Parts Field Recycled . | . . . . . . . . . . . . . . . . . . . . . . . . . . . . . . . . . . . . . . . . . Retrieved Matter . | . . . . . . . . . . . . . . . . . . . . . . . . . . . . . . . . . . . . . . . . . Parts Self-Destructed 187 | . . . . . . . . . . . . . . . . . 10 9 . . . . . . . . 9 38 . 38 . 34 30 2 17 . . . . . Prevented 25 | . . . . . . . . . . . . . . . . . . . . . . . . . . . . 12 . . . . 10 . 3 . . . . . Kills | -11 -10 -10 -9 -9 -8 -8 -8 -8 -8 -8 -8 -8 -8 -8 -8 -7 -7 -7 -7 -6 -6 -6 -6 -6 -6 -5 -5 -5 -5 -4 -4 -4 -4 -4 -3 -3 -3 -2 -1 -1 ------- Run | Jun Mat Min Mat Min Mat Gar Mat Gar Mat Gar Mat Gar Mat Gar Mat Fac Low Low Zio Pro Fac Ext Cet Arc Hub Fac Upp Upp War Pro Fac Upp Upp Zhi Pro Res Tes Res Acc Com Combat Hostiles Destroyed 640 | . 10 1 28 8 9 15 15 17 25 22 9 16 11 33 21 42 5 12 . 4 27 24 3 2 5 12 3 17 8 17 31 25 14 . 23 30 18 14 43 21 Melee 1 | . . . . . . . . . . . . . . . 1 . . . . . . . . . . . . . . . . . . . . . . . . . Guns 160 | . 10 1 . . . . . . 8 18 8 9 9 7 . . 1 5 . . . 15 1 2 5 5 2 9 . 13 17 . . . . . . . 12 3 Cannons 287 | . . . 24 1 9 10 15 11 11 . . . . 14 10 31 4 7 . 2 16 3 1 . . 2 . 6 6 1 5 16 7 . 5 28 14 12 5 11 AOE 163 | . . . 4 7 . 5 . 6 6 4 1 7 2 12 10 11 . . . 2 11 5 1 . . 5 1 . . 3 3 9 7 . 18 . 3 2 18 . Classes Destroyed 28 | . 7 . 2 1 1 3 2 1 2 . . . . 1 . . . . . . 2 . . . . . 1 . 1 . . 1 . . . 2 . . . 1 Worker 28 | . 2 . 1 1 . . 2 . 1 . 1 . . . . 2 . . . . 1 1 . . 1 1 . . . . 1 . . . . 3 2 . 5 3 Builder 19 | . 1 . 3 . 1 . 2 . 1 . . . . . 1 3 . . . . . 1 . . . . . . . . 2 . . . . . 2 . 2 . Tunneler 2 | . . . . 1 . . . . . . . . . . . . . . . . . . . . . . . . . . . . . . . . . . 1 . Hauler 27 | . 1 . 6 . 1 . 4 . 4 . 3 . 3 . . 2 . . . . . . . . . . . . . . 1 . . . . . . 1 1 . Recycler 23 | . . . 3 1 . . 1 . 3 . 2 . . . . 5 . . . . 1 1 . . . . . . . . . . . . . . 4 . 1 1 Carrier 1 | . . . . . . . . . . . . . . . . . . . . . . . . . . . . . . . . . . . . 1 . . . . Minesweeper 4 | . . . . . . . . . . . . . . . . . . . . . . . . . . . 1 . . . . . 2 . 1 . . . . . Mechanic 7 | . . . . . . . . . 1 . . . . . . 2 . . . . 2 . . . . 1 . . . . . . . . 1 . . . . . Operator 12 | . 1 . 1 . . . . . . . . . . . 1 1 . . . . . . . 3 . . . . . . 1 . . . . 2 1 . . 1 Watcher 29 | . 2 . 2 . 1 1 1 . 2 . . . 2 1 3 1 . . . . 4 2 . . . . . . . . 1 . . . . . 3 . 1 2 Swarmer 143 | . 6 . 8 8 . . 4 11 8 7 2 3 . 6 3 7 . 8 . . 3 . 1 . . 5 1 1 . 6 . 13 7 . 14 2 . . 9 . Cutter 2 | . . . . . . 2 . . . . . . . . . . . . . . . . . . . . . . . . . . . . . . . . . . Saboteur 2 | . . . . . . . . . . . . . . . . . . . . . 1 1 . . . . . . . . . . . . . . . . . . Grunt 209 | . 4 1 11 . 4 6 7 3 9 5 6 7 4 15 13 19 2 2 . 3 2 10 . . . 3 1 8 5 5 15 5 5 . 4 9 . 4 5 7 Brawler 22 | . . . . . 1 3 . . 2 . . 1 . 1 . 3 . 1 . 1 . 2 . . . . . 2 . . . 3 . . 1 . . . 1 . Duelist 15 | . . . . . . 1 . . . . . . . . 2 1 1 . . . . . . . . . 1 4 . . . 1 . . 2 1 . . . 1 Protector 3 | . . . . . . . . . 1 . . . . . . . . . . . . . . . 1 . . . 1 . . . . . . . . . . . Sentry 81 | . . . 9 . 4 2 2 . 5 8 1 4 6 6 3 2 1 . . . 3 6 . 2 2 . . 2 . 1 3 2 . . 2 1 . . 4 . Demolisher 7 | . . . . . . . 1 . . . . . . . . . . . . . . . . . . . . . 1 . . . . . . 3 . 2 . . Specialist 14 | . . . . . . . . 3 . . . . . . . 2 . . . . 7 . . . . . . . . . . . . . . . . . 2 . Hunter 46 | . . . . . . . 1 . . 2 . 1 1 . . 3 . . . . 5 2 . . . 2 . . . 2 6 . 1 . . 1 4 3 10 2 Programmer 69 | . . . . . . 1 . . . . . . . 4 . 5 . . . . 5 1 . . . 2 . . . 3 7 1 1 . . 3 14 1 12 9 Heavy 1 | . . . . . . . . . . . . . . . . . . . . . 1 . . . . . . . . . . . . . . . . . . . Behemoth 5 | . . . . . . . . . . . . . . 1 . . 1 1 . . . 2 . . . . . . . . . . . . . . . . . . Cetus Guard 2 | . . . . . . . . . . . . . . . . . . . . . . . 2 . . . . . . . . . . . . . . . . . M Guard 1 | . . . . . . . . . . . . . . . . . . . . . . . . . . . . . . . . . . . . . . . . 1 Enhanced Grunt 2 | . . . . . . . . . . . . . . . . . . . . . . . . . 2 . . . . . . . . . . . . . . . Lightning 2 | . . . . . . . . . . . . . . . . . . . . . . . . . 2 . . . . . . . . . . . . . . . Striker 12 | . . . . . . . . . . . . . . . . . . . . . . . . . . . . . . . . . . . . 8 . 4 . . Executioner 3 | . . . . . . . . . . . . . . . . . . . . . . . . . . . . . 1 . . . . . . 2 . . . . Packrat 6 | . . . . . . . . . . . . . . . . . . . . 2 . . . . . . 2 . . . . . 2 . . . . . . . Samaritan 1 | . . . . . . . . . . . . . . . . . . . . . . . . . . . . . . . . 1 . . . . . . . . Commander 1 | . . . . . . . . . . . . . . . . . . . . . . . . . . . 1 . . . . . . . . . . . . . Troll 1 | . . . . . . . . . . . . . . . . . . . . . . . . . . . . . . . . . . . . . . . . 1 Best Kill Streak 12 | . 3 1 8 5 5 5 5 4 5 7 5 5 2 12 7 7 2 4 . 4 12 7 1 3 5 6 2 7 3 5 7 6 6 . 7 11 3 9 10 4 Combat Bots Only 12 | . 3 1 7 4 5 5 2 4 5 7 2 5 2 12 5 6 2 4 . 4 9 6 1 2 5 5 2 7 3 5 6 6 6 . 7 11 3 9 8 4 Max Kills in Single Turn 7 | . 2 1 4 3 1 3 2 2 3 3 2 2 2 3 3 3 1 1 . 1 7 3 1 1 1 3 1 2 2 2 3 5 3 . 5 2 3 2 3 1 Gunslinging 1 | . . . . . . . . . . . . . . . . . . . . . . 1 . . . . . . . . . . . . . . . . . . Exploded 5 | . . . 4 2 . 3 . 2 3 3 1 2 2 3 3 3 . . . 1 4 3 1 . . 3 1 . . 2 1 4 3 . 5 . 2 2 3 . Melee 1 | . . . . . . . . . . . . . . . 1 . . . . . . . . . . . . . . . . . . . . . . . . . Uniques/NPCs Destroyed 1 | . . 1 . . . . . . . . . . . . . . . . . . . . . . . . . . . . . . . . . . . . . . YI-UF0 (-10/Mines) Combat | -11 -10 -10 -9 -9 -8 -8 -8 -8 -8 -8 -8 -8 -8 -8 -8 -7 -7 -7 -7 -6 -6 -6 -6 -6 -6 -5 -5 -5 -5 -4 -4 -4 -4 -4 -3 -3 -3 -2 -1 -1 -------- Run | Jun Mat Min Mat Min Mat Gar Mat Gar Mat Gar Mat Gar Mat Gar Mat Fac Low Low Zio Pro Fac Ext Cet Arc Hub Fac Upp Upp War Pro Fac Upp Upp Zhi Pro Res Tes Res Acc Com Damage Taken 42032 | . 488 97 773 155 177 799 522 766 705 1335 236 505 382 1167 602 1737 430 1018 . 93 1855 1639 302 27 707 930 79 1526 221 867 1727 533 306 . 605 6070 865 3564 5941 2281 Core 3431 | . 77 17 54 14 . 81 6 76 28 82 14 29 14 89 70 116 55 50 . 18 109 236 . . 3 87 . 58 26 41 62 38 7 . 36 676 73 337 509 243 Absorbed by Shields 4275 | . . . . . . . . 35 . 52 . . . 234 . 340 20 . . . 236 242 . . . . 28 105 54 365 961 70 210 . 184 1139 . . . . Reduced by Siege Mode 886 | . . . . . . . . . . . . . . . . . . . . . . . . . 37 5 . 32 . 43 60 . 3 . 38 79 65 390 134 . Regen/Repaired (Parts) 3567 | . 129 . . . . . . . . . 229 . 277 . . 114 . . 1007 . . . . . . 1259 . . 140 . . . . . . . 412 . . . Core Remaining (%) 64 | 100 . 62 . 83 . . . . . . . . . . 11 . . . . 65 . . . . 59 . . . . 78 . . . . 87 . 36 76 . 53 Volleys Fired 2073 | . 61 9 82 11 24 45 66 32 86 66 33 38 43 74 44 115 30 37 . 7 69 63 15 15 18 31 29 51 40 28 103 51 50 7 49 125 127 51 165 83 Largest 2 | . 2 2 1 1 1 1 1 1 2 2 2 2 2 2 2 1 2 2 . 2 2 2 2 2 2 2 2 2 1 2 2 2 2 1 2 2 2 1 2 2 Hottest 240 | . 70 70 75 60 60 60 60 60 60 56 56 50 50 106 106 60 101 101 . 106 106 188 114 70 70 81 90 90 90 76 132 132 132 90 132 132 226 88 200 240 Shots Fired 3050 | . 122 18 82 11 24 45 66 32 114 125 66 72 81 134 76 115 40 70 . 11 124 115 27 30 35 52 47 82 40 52 179 86 81 7 75 200 138 51 204 121 Gun 1316 | . 122 18 8 . . . . . 57 123 65 67 79 56 . . 10 28 . . . 96 9 30 35 43 36 62 . 48 127 . . . . . 27 . 129 41 Cannon 1598 | . . . 73 5 24 39 66 28 52 . . . . 70 65 101 30 42 . 8 116 14 16 . . 5 11 20 40 . 48 81 79 7 63 196 110 48 64 77 Launcher 104 | . . . 1 6 . 6 . 4 5 2 1 5 2 8 11 14 . . . . . . 2 . . 4 . . . . . . 2 . 12 4 1 3 11 . Special 32 | . . . . . . . . . . . . . . . . . . . . 3 8 5 . . . . . . . 4 4 5 . . . . . . . 3 Kinetic 2147 | . 66 9 73 5 24 39 66 28 109 123 65 67 79 126 65 101 40 70 . 8 116 . 25 30 35 43 36 62 . 48 152 70 73 . 54 152 43 45 . . Thermal 557 | . 56 9 8 . . . . . . . . . . . . . . . . . . 96 . . . . 11 4 16 . 4 11 6 7 5 41 90 . 131 62 Explosive 133 | . . . 1 6 . 6 . 4 5 2 1 5 2 8 11 14 . . . 3 8 5 2 . . 4 . . . 4 4 5 2 . 12 4 1 3 11 . Electromagnetic 210 | . . . . . . . . . . . . . . . . . . . . . . 14 . . . 5 . 16 24 . 19 . . . 4 3 4 3 62 56 Robot Hit Streak 35 | . 11 6 11 5 5 7 14 20 11 14 25 13 17 14 8 10 6 11 . 13 33 14 7 13 23 34 18 23 24 19 35 28 15 9 19 17 16 22 21 17 Robot Miss Streak 6 | . 5 3 3 3 1 3 3 2 3 1 2 4 4 3 4 2 1 3 . 1 2 2 2 2 2 1 1 2 2 2 2 3 4 1 1 4 3 2 6 4 Penetration Max 2 | . . . 1 . 1 1 1 . 1 1 1 . . . . 1 . . . . . . 1 1 1 1 1 1 1 1 2 1 . . . 2 . . . . Secondary Targets 24 | . . . . . . . . . . 2 1 . 1 2 . . . . . . . 2 . . 3 1 1 3 . 4 2 . . . . . . . 2 . Max Gunslinging Chain 1 | . . . . . . . . . . 1 1 . 1 1 . . . . . . . 1 . . 1 1 1 1 . 1 1 . . . . . . . 1 . Shots Hit Robots 2109 | . 60 16 63 3 17 26 49 20 68 87 53 48 62 100 46 84 21 46 1 8 91 85 20 25 30 44 28 72 26 41 147 54 51 9 53 106 96 41 130 82 Core Hits 1190 | . 27 6 44 11 10 23 19 12 45 31 23 26 30 50 35 77 14 16 . 8 61 44 13 11 15 22 11 31 11 31 70 39 22 3 42 55 40 25 87 50 Critical Kills 90 | . . . . . . . . . 2 1 1 . 1 . . . . . . . . 7 1 3 2 2 2 3 . 2 5 9 11 . 4 30 2 . . 2 Critical Parts Destroyed 121 | . . . . . . . . . 3 1 . . . . . . . . . . . 13 1 3 2 4 2 7 . 1 5 17 17 . 13 32 . . . . Critical Strikes 312 | . 1 . 10 . . 4 8 2 7 2 2 . 1 3 3 9 . 2 . . 6 24 5 6 6 6 5 13 8 4 14 27 28 . 24 71 4 . 5 2 Burn 3 | . 1 . 2 . . . . . . . . . . . . . . . . . . . . . . . . . . . . . . . . . . . . . Meltdown 4 | . . . . . . . . . . . . . . . . . . . . . . . . . . . . . . . . . . . . . 2 . . 2 Destroy 234 | . . . . . . . . . 5 2 2 . 1 . . . . . . . . 21 5 6 6 6 5 10 . 3 13 26 28 . 24 71 . . . . Blast 47 | . . . 8 . . 4 8 2 2 . . . . 3 3 9 . 2 . . 4 . . . . . . . . . . . . . . . 2 . . . Corrupt 18 | . . . . . . . . . . . . . . . . . . . . . . 1 . . . . . 3 8 . 1 . . . . . . . 5 . Sever 6 | . . . . . . . . . . . . . . . . . . . . . 2 2 . . . . . . . 1 . 1 . . . . . . . . Melee Attacks 52 | . . 3 . . . . . . . . . . 2 9 . . . . 1 . 1 1 1 1 . 1 2 . 22 . . . . 4 . . . . . 4 Impact 22 | . . . . . . . . . . . . . . 5 . . . . . . . . . . . 1 1 . 15 . . . . . . . . . . . Slashing 5 | . . 3 . . . . . . . . . . . . . . . . . . . . . . . . . . . . . . . . . . . . . 2 Piercing . | . . . . . . . . . . . . . . . . . . . . . . . . . . . . . . . . . . . . . . . . . Sneak Attacks 28 | . . 3 . . . . . . . . . . 2 4 . . . . 1 . 1 1 1 1 . . 1 . 7 . . . . 3 . . . . . 3 Combat Hostiles 3 | . . . . . . . . . . . . . . . . . . . . . . . . . . . . . . . . . . . . . . . . 3 Follow-up Attacks . | . . . . . . . . . . . . . . . . . . . . . . . . . . . . . . . . . . . . . . . . . Damage Inflicted 96298 | . 787 283 3804 608 963 1976 2808 1611 3300 2114 1140 1452 1263 3526 2921 6470 538 1248 . 917 5866 3597 915 740 1100 2223 876 2334 1219 1832 5797 2333 1505 191 3478 2803 5883 3519 9254 3104 Guns 25087 | . 626 145 150 . . . . . 738 1686 962 822 1034 828 . . 186 451 . . . 2178 299 740 821 1136 843 1550 . 1215 3474 . . . . . 978 . 3519 706 Cannons 42315 | . . . 3297 97 963 1277 2808 1093 1820 . . . . 1522 1334 3949 352 797 . 181 2617 323 246 . . 213 33 780 1219 . 1119 864 763 191 777 2190 4306 2923 2009 2252 Explosions 27179 | . 138 . 260 505 . 699 . 517 711 428 175 630 221 1162 1551 2458 . . . 665 2930 947 370 . 279 798 . . . 509 1048 1373 717 . 2701 613 549 596 3629 . Melee 275 | . . 138 . . . . . . . . . . . . . . . . . . . . . . . . . . . . . . . . . . . . . 137 Ramming 651 | . 23 . 97 6 . . . 1 31 . 3 . 8 14 36 63 . . . . 37 44 . . . 76 . 4 . . 27 . 25 . . . 50 . 97 9 Kinetic 49247 | . 285 57 3297 97 963 1277 2808 1093 2558 1686 962 822 1034 2350 1334 3949 538 1248 . 181 2617 . 545 740 821 1136 843 1550 . 1215 3839 864 763 . 682 2091 2153 2849 . . Thermal 12790 | . 479 88 150 . . . . . . . . . . . . . . . . . . 2178 . . . . 33 . . . 88 . 95 191 . . 3511 . 4429 1548 Explosive 25484 | . . . 260 505 . 699 . 517 711 428 175 630 221 1162 1551 2458 . . . 665 2930 947 370 . . 798 . . . 509 960 1373 622 . 2701 613 132 596 2951 . Electromagnetic 7060 | . . . . . . . . . . . . . . . . . . . . . . 323 . . 279 213 . 780 1219 . 754 . . . 95 99 37 74 1777 1410 Impact . | . . . . . . . . . . . . . . . . . . . . . . . . . . . . . . . . . . . . . . . . . Slashing 1066 | . . 138 . . . . . . . . . . . . . . . . . 71 282 105 . . . . . . . 108 129 96 . . . . . . . 137 Piercing . | . . . . . . . . . . . . . . . . . . . . . . . . . . . . . . . . . . . . . . . . . Highest Corruption 27 | . . . . . . 1 1 1 1 1 1 1 1 5 5 3 . . . . 2 5 . . 5 1 . . . 1 5 4 1 . . 27 26 . 5 8 Average Corruption 3 | . . . . . . 1 1 1 1 1 1 1 1 2 5 1 . . . . 1 4 . . 4 1 . . . 1 2 2 1 . . 7 15 . 4 6 Corruption Purged 40 | . . . . . . . . . . . . . . . . 3 . . . . 2 6 . . . 2 . . . 1 8 5 1 . . . 12 . . . Corruption Blocked 43 | . . . . . . . . . . . . . . . . . . . . . . . . . . . . . 12 . . . . . . . 8 9 10 4 Effects 367 | . . . . . . 10 12 8 24 17 12 15 12 27 24 1 . . . . 4 14 . . 4 1 . . . 3 7 2 . . . 9 108 . 2 51 Message Errors 86 | . . . . . . 3 1 3 5 5 4 1 5 5 10 1 . . . . 1 4 . . 1 . . . . 2 1 . . . . . 15 . 1 18 Matter Fused 90 | . . . . . . 1 5 . 4 4 2 4 1 7 3 . . . . . 2 5 . . 1 . . . . . 3 . . . . 4 32 . 1 11 Heat Flow Errors 38 | . . . . . . 1 1 . 2 1 3 2 2 1 7 . . . . . . 1 . . . 1 . . . . . . . . . . 13 . . 3 Energy Discharges 50 | . . . . . . 3 3 2 7 1 1 1 . 7 1 . . . . . 1 . . . . . . . . . . . . . . 4 14 . . 5 Parts Rejected 6 | . . . . . . 1 . 1 1 1 . . . . 1 . . . . . . . . . . . . . . . 1 . . . . . . . . . Data Loss (minor) 44 | . . . . . . 1 2 1 3 5 . 4 3 2 . . . . . . . 2 . . 1 . . . . 1 1 1 . . . . 13 . . 4 Data Loss (major) 21 | . . . . . . . . 1 1 . 1 2 . 3 1 . . . . . . 1 . . . . . . . . . 1 . . . . 5 . . 5 Misfires 15 | . . . . . . . . . . . 1 1 . 2 1 . . . . . . 1 . . . . . . . . . . . . . . 5 . . 4 Alerts 7 | . . . . . . . . . . . . . 1 . . . . . . . . . . . . . . . . . 1 . . . . . 5 . . . Misdirections 3 | . . . . . . . . . . . . . . . . . . . . . . . . . . . . . . . . . . . . . 3 . . . Weapon Failures 7 | . . . . . . . . . 1 . . . . . . . . . . . . . . . 1 . . . . . . . . . . 1 3 . . 1 Overload Shots . | . . . . . . . . . . . . . . . . . . . . . . . . . . . . . . . . . . . . . . . . . Overflow Damage 3572 | . 61 19 175 31 51 86 285 192 94 39 . 2 . 153 142 277 . 40 . 38 73 61 4 . . 78 . . 107 . 51 43 129 58 219 6 603 81 369 5 Projectiles 2299 | . . . 159 . 51 86 285 83 79 . . . . 112 29 208 . 40 . 38 26 15 . . . . . . 107 . 10 43 18 58 13 6 598 81 149 5 Explosions 1254 | . 61 . 16 31 . . . 109 15 39 . 2 . 41 113 69 . . . . 47 46 4 . . 78 . . . . 41 . 111 . 206 . 5 . 220 . Melee 19 | . . 19 . . . . . . . . . . . . . . . . . . . . . . . . . . . . . . . . . . . . . . Knockbacks 177 | . . . 10 . . 5 7 4 8 . . . 1 13 15 13 2 9 . 1 10 . . . . . . . . . 6 8 8 . 3 24 10 18 2 . Impact 6 | . . . . . . . . . 1 . . . 1 . . . . . . . . . . . . . . . . . 1 . 1 . . . . . 2 . Kinetic 158 | . . . 8 . . 5 7 4 7 . . . . 10 11 12 2 7 . 1 10 . . . . . . . . . 5 8 6 . 3 24 10 18 . . Secondary 13 | . . . 2 . . . . . . . . . . 3 4 1 . 2 . . . . . . . . . . . . . . 1 . . . . . . . Self-Inflicted Damage 610 | . . . . 46 . 50 . . . 46 . . . . 92 18 . . . . . 22 . . 93 . . . . . 31 . . . 19 . . 67 126 . Shots 18 | . . . . 1 . 1 . . . 1 . . . . 3 2 . . . . . . . . 1 . . . . . 1 . . . 1 . . 3 4 . Rammed 72 | . 9 . 16 1 . . 1 1 5 . 2 . 1 2 3 5 . . . . 2 1 . . . 5 . 1 . . 3 . 1 . . . 4 . 8 1 Targets Rammed 83 | . 11 . 19 2 . . 1 1 5 . 2 . 1 2 4 5 . . . . 3 1 . . . 6 . 1 . . 3 . 1 . . . 6 . 8 1 Kicked . | . . . . . . . . . . . . . . . . . . . . . . . . . . . . . . . . . . . . . . . . . Crushed 11 | . 2 . 3 1 . . . . . . . . . . 1 . . . . . 1 . . . . 1 . . . . . . . . . . 2 . . . Highest Temperature 485 | . 170 204 192 20 69 145 141 108 220 161 241 240 249 315 242 . 97 14 . . 240 286 . . . 170 . 25 36 24 240 252 300 154 273 210 485 10 368 197 Average Temperature 65 | . 36 101 39 13 27 42 36 33 63 19 39 44 32 79 88 . 46 9 . . 68 93 . . . 67 . 11 19 9 65 75 91 76 96 33 98 10 96 77 Received Heat Transfer 6221 | . 90 54 204 . 63 306 171 215 342 243 81 234 153 404 234 442 85 171 . 45 166 564 36 . 12 252 18 386 28 58 214 101 13 . 79 136 9 234 261 117 Effects 20 | . . . . . . . . . . . . . . 1 . . . . . . . 4 . . . . . . . . . . . . 2 . 10 . 3 . Shutdowns 1 | . . . . . . . . . . . . . . . . . . . . . . . . . . . . . . . . . . . . . 1 . . . Energy Bleed 1 | . . . . . . . . . . . . . . . . . . . . . . . . . . . . . . . . . . . . . 1 . . . Interference 17 | . . . . . . . . . . . . . . 1 . . . . . . . 4 . . . . . . . . . . . . 2 . 7 . 3 . Damage (minor) 1 | . . . . . . . . . . . . . . . . . . . . . . . . . . . . . . . . . . . . . 1 . . . Siege Activations 42 | . . . . . . . . . . . . . . . . . . . . . . . . 1 1 2 1 3 1 4 7 4 1 . 5 2 4 2 4 . Total Turns 1330 | . . . . . . . . . . . . . . . . . . . . . . . . 9 45 33 2 84 11 133 168 96 20 . 417 47 94 45 126 . Longest Duration 185 | . . . . . . . . . . . . . . . . . . . . . . . . 9 45 25 2 35 11 60 44 38 20 . 185 26 45 42 57 . Robots Corrupted 28 | . . . . . . . . . . . . . . . . . . . . . . 1 . . 2 . . 2 2 . 6 . . . 1 1 . . 8 5 Combat Hostiles 25 | . . . . . . . . . . . . . . . . . . . . . . 1 . . . . . 2 2 . 6 . . . . 1 . . 8 5 Parts Fried 61 | . . . . . . . . . . . . . . . . . . . . . . . . . 8 3 . 2 8 . 5 . 1 . 2 . . . 13 19 Impact Corruptions 2 | . . . . . . . . . . . . . . . . 1 . 1 . . . . . . . . . . . . . . . . . . . . . . Robots Melted 4 | . . . . . . . . . . . . . . . . . . . . . . . . . . . . . . . . . . . . . 2 . . 2 Combat Hostiles 3 | . . . . . . . . . . . . . . . . . . . . . . . . . . . . . . . . . . . . . 1 . . 2 Parts Melted 37 | . . . . . . . . . . . . . . . . 1 . . . . . 5 . . . . . . . . . . . . . . 14 . 11 6 Heat Transferred 12487 | . 1173 259 407 . . . . . . . . . . . . . . . . . . 2590 . . . . 37 . . . 50 . 160 222 . . 2906 . 3576 1107 Parts Sabotaged . | . . . . . . . . . . . . . . . . . . . . . . . . . . . . . . . . . . . . . . . . . Parts Stolen . | . . . . . . . . . . . . . . . . . . . . . . . . . . . . . . . . . . . . . . . . . Parts Stripped . | . . . . . . . . . . . . . . . . . . . . . . . . . . . . . . . . . . . . . . . . . Power Chain Reactions 2 | . . . . . . . . . . . . . . . . . . . . . . . . . . . . . . . 1 . . . . . 1 . . . Missiles Intercepted 16 | . . . . . . . . . . . . . . . . . . . . . . . . . . . . . . . . . . . . . . 7 . 9 Alert | -11 -10 -10 -9 -9 -8 -8 -8 -8 -8 -8 -8 -8 -8 -8 -8 -7 -7 -7 -7 -6 -6 -6 -6 -6 -6 -5 -5 -5 -5 -4 -4 -4 -4 -4 -3 -3 -3 -2 -1 -1 ------- Run | Jun Mat Min Mat Min Mat Gar Mat Gar Mat Gar Mat Gar Mat Gar Mat Fac Low Low Zio Pro Fac Ext Cet Arc Hub Fac Upp Upp War Pro Fac Upp Upp Zhi Pro Res Tes Res Acc Com Peak Influence 1306 | . 223 90 366 334 293 634 525 1107 715 1207 929 921 589 1306 920 1301 . . . . 580 473 546 431 423 405 . . . . 541 . . . . 599 680 527 941 1048 Initial 636 | . . 27 . 97 1 65 308 341 539 416 588 326 448 218 636 300 . . . . . 242 76 218 . 142 . . . . . . . . . 171 306 249 257 601 Average 372 | . 52 18 214 129 141 402 411 736 562 866 618 650 414 783 745 495 . . . . 132 143 300 144 213 185 . . . . 167 . . . . 208 333 282 412 822 Maximum Alert Level 4 | . 1 . 1 1 1 2 2 4 3 4 3 3 2 4 3 4 . . . . 2 2 2 2 2 2 . . . . 2 . . . . 2 2 2 3 3 Low Security (%) 34 | 100 98 100 42 70 68 21 . . . . . . . . . 23 . . . . 80 73 54 59 34 63 . . . . 63 . . . . 60 8 18 17 . Level 1 26 | . 1 . 57 29 31 19 39 6 . . . 16 45 8 . 34 . . . . 1 23 4 28 63 34 . . . . 32 . . . . 30 70 73 35 . Level 2 23 | . . . . . . 59 60 37 98 20 89 24 54 30 35 7 . . . . 17 2 40 11 2 2 . . . . 4 . . . . 8 21 7 33 23 Level 3 12 | . . . . . . . . 46 1 64 10 59 . 31 64 22 . . . . . . . . . . . . . . . . . . . . . . 12 76 Level 4 2 | . . . . . . . . 9 . 14 . . . 29 . 11 . . . . . . . . . . . . . . . . . . . . . . . . Level 5 . | . . . . . . . . . . . . . . . . . . . . . . . . . . . . . . . . . . . . . . . . . High Security . | . . . . . . . . . . . . . . . . . . . . . . . . . . . . . . . . . . . . . . . . . Max Security . | . . . . . . . . . . . . . . . . . . . . . . . . . . . . . . . . . . . . . . . . . Squads Dispatched 119 | . 3 1 3 . 5 . 4 . 5 . 4 . 2 . 3 17 . . . . 6 3 . . 2 4 . 1 . . 10 . . . 1 6 8 1 18 12 Investigation 24 | . 1 . 1 . 1 . 1 . 2 . 3 . 1 . . 4 . . . . . . . . . 1 . . . . 2 . . . . 2 2 1 2 . Extermination 28 | . . . . . . . . . . . . . . . . 5 . . . . 1 . . . 1 2 . . . . 4 . . . . . 4 . 5 6 Reinforcement 40 | . 2 . 2 . 3 . . . . . 1 . 1 . 1 5 . . . . 5 2 . . . . . . . . 4 . . . . 4 2 . 5 3 Assault 16 | . . 1 . . . . . . 1 . . . . . 2 3 . . . . . 1 . . . . . 1 . . . . . . 1 . . . 3 3 Garrison 11 | . . . . . 1 . 3 . 2 . . . . . . . . . . . . . . . 1 1 . . . . . . . . . . . . 3 . Intercept . | . . . . . . . . . . . . . . . . . . . . . . . . . . . . . . . . . . . . . . . . . Searches Triggered . | . . . . . . . . . . . . . . . . . . . . . . . . . . . . . . . . . . . . . . . . . Construction Impeded 3 | . . . . . 1 . . . . . 1 . . . . 1 . . . . . . . . . . . . . . . . . . . . . . . . Haulers Reinforced 8 | . . . . . . . . . . . . . . . . 2 . . . . . . . . . . . . . . 2 . . . . 1 . . 3 . Active Scanning Responses . | . . . . . . . . . . . . . . . . . . . . . . . . . . . . . . . . . . . . . . . . . Cargo Convoy Interrupts 1 | . . . . . . . . . . . . . . . . . . . . . 1 . . . . . . . . . . . . . . . . . . . Stealth | -11 -10 -10 -9 -9 -8 -8 -8 -8 -8 -8 -8 -8 -8 -8 -8 -7 -7 -7 -7 -6 -6 -6 -6 -6 -6 -5 -5 -5 -5 -4 -4 -4 -4 -4 -3 -3 -3 -2 -1 -1 --------- Run | Jun Mat Min Mat Min Mat Gar Mat Gar Mat Gar Mat Gar Mat Gar Mat Fac Low Low Zio Pro Fac Ext Cet Arc Hub Fac Upp Upp War Pro Fac Upp Upp Zhi Pro Res Tes Res Acc Com Distress Signals 56 | . . . 3 . 1 1 3 . 4 . 4 . 2 . 1 . . . . . 4 . 2 . 1 1 . . . . 2 . . . . 5 2 9 1 10 Communications Jammed 162 | . . . . . . . . . . . . . . 10 . . . . . . . 1 . . . 40 . . . . 2 . . . . 38 . 18 53 . Distress Signals 161 | . . . . . . . . . . . . . . 10 . . . . . . . 1 . . . 40 . . . . 2 . . . . 38 . 18 52 . Times Spotted 1028 | . 24 2 53 8 10 21 21 18 33 23 29 16 25 35 32 57 5 12 . 4 41 35 16 11 13 22 8 18 81 19 47 17 15 . 23 49 35 34 65 51 Peak Tracking Total 11 | . 4 1 7 4 3 5 2 3 5 5 5 5 4 6 6 6 3 4 . 4 11 5 6 1 4 6 7 5 11 5 4 4 3 . 5 9 4 9 8 10 Tactical Retreats 42 | . 2 . . . . . 1 2 4 1 1 1 . 1 1 1 1 . . . . 1 1 . . . . . 2 . 3 . 1 . 9 3 . . 4 2 Traps | -11 -10 -10 -9 -9 -8 -8 -8 -8 -8 -8 -8 -8 -8 -8 -8 -7 -7 -7 -7 -6 -6 -6 -6 -6 -6 -5 -5 -5 -5 -4 -4 -4 -4 -4 -3 -3 -3 -2 -1 -1 ------- Run | Jun Mat Min Mat Min Mat Gar Mat Gar Mat Gar Mat Gar Mat Gar Mat Fac Low Low Zio Pro Fac Ext Cet Arc Hub Fac Upp Upp War Pro Fac Upp Upp Zhi Pro Res Tes Res Acc Com Traps Triggered 32 | . . . . . . 5 . . . 9 1 2 . 2 1 . . . . . . 7 . . . 2 . . . . . . . . . . . . 2 1 Indirectly . | . . . . . . . . . . . . . . . . . . . . . . . . . . . . . . . . . . . . . . . . . Trap Hack Attempts 165 | . . . . . . . . . . . . . 23 . . 27 . . . . 56 5 . . . . . . . . 40 . . . . 14 . . . . Triggered . | . . . . . . . . . . . . . . . . . . . . . . . . . . . . . . . . . . . . . . . . . Disarmed 1 | . . . . . . . . . . . . . . . . . . . . . . . . . . . . . . . 1 . . . . . . . . . Reprogrammed 42 | . . . . . . . . . . . . . 2 . . 4 . . . . 11 1 . . . . . . . . 12 . . . . 1 . . . 11 Reused 18 | . . . . . . . . . . . . . . . . . 4 . . . . 1 . . . . . . . . 4 . 7 . 1 1 . . . . Traps Extracted 6 | . . . . . . . . . . . . . . . . . . 3 . . . . . . . . . . . . . 1 2 . . . . . . . Installed 21 | . . . . . . . . . . . . . . . . . 4 . . . . . . . . . . . . . . 1 14 . 1 1 . . . . Triggered 32 | . . . . . . . . . . . . . . . . . 4 . . 2 . 1 . . . . . . 11 . 4 . 8 . 1 1 . . . . Most Traps Carried 11 | . . . . . . . . . . 4 4 4 4 4 4 4 4 3 3 3 3 3 3 3 3 3 6 6 6 6 6 6 11 7 9 9 8 8 8 8 Machines | -11 -10 -10 -9 -9 -8 -8 -8 -8 -8 -8 -8 -8 -8 -8 -8 -7 -7 -7 -7 -6 -6 -6 -6 -6 -6 -5 -5 -5 -5 -4 -4 -4 -4 -4 -3 -3 -3 -2 -1 -1 ---------- Run | Jun Mat Min Mat Min Mat Gar Mat Gar Mat Gar Mat Gar Mat Gar Mat Fac Low Low Zio Pro Fac Ext Cet Arc Hub Fac Upp Upp War Pro Fac Upp Upp Zhi Pro Res Tes Res Acc Com Machines Disabled 75 | . 3 . 1 . . 2 3 1 1 6 4 . 1 4 3 7 . . . . 2 2 . 1 3 2 3 . 2 . 2 . 3 . . . 11 1 4 3 Max in Single Turn 4 | . 3 . 1 . . 1 1 1 1 1 . . 1 1 1 4 . . . . 2 1 . . 2 1 1 . . . 1 . 3 . . . 1 1 1 1 Garrison Access 11 | . . . . . . . . . . . . . . . . 2 . . . . . . . . . . . . . . . . . . . 3 1 2 3 . Garrison Relay 3 | . . . . . . . . . . 1 . . . 2 . . . . . . . . . . . . . . . . . . . . . . . . . . Network Hub 2 | . . . . . . . . . . . . . . . . . . . . . . . . . 2 . . . . . . . . . . . . . . . Machines Repaired . | . . . . . . . . . . . . . . . . . . . . . . . . . . . . . . . . . . . . . . . . . Machines Sabotaged . | . . . . . . . . . . . . . . . . . . . . . . . . . . . . . . . . . . . . . . . . . Overloaded Fab Kills . | . . . . . . . . . . . . . . . . . . . . . . . . . . . . . . . . . . . . . . . . . Hacking | -11 -10 -10 -9 -9 -8 -8 -8 -8 -8 -8 -8 -8 -8 -8 -8 -7 -7 -7 -7 -6 -6 -6 -6 -6 -6 -5 -5 -5 -5 -4 -4 -4 -4 -4 -3 -3 -3 -2 -1 -1 --------- Run | Jun Mat Min Mat Min Mat Gar Mat Gar Mat Gar Mat Gar Mat Gar Mat Fac Low Low Zio Pro Fac Ext Cet Arc Hub Fac Upp Upp War Pro Fac Upp Upp Zhi Pro Res Tes Res Acc Com Machines Accessed 172 | . 7 1 13 . 3 2 3 2 8 2 10 1 10 1 5 17 . . . . 6 10 1 . 3 10 1 . . . 9 . . 4 . 10 10 2 14 7 Terminals 103 | . 5 . 9 . 1 2 2 2 5 2 7 1 7 1 3 8 . . . . 6 8 1 . 3 5 . . . . 3 . . . . 3 5 1 7 6 Fabricators 11 | . . . . . . . . . . . . . . . . 2 . . . . . . . . . . . . . . 3 . . . . 3 1 . 2 . Repair Stations 14 | . 1 . 2 . . . . . . . 1 . 2 . 1 2 . . . . . . . . . 2 . . . . . . . . . 1 1 . 1 . Recycling Units 13 | . 1 . 1 . 1 . . . 2 . 1 . . . 1 1 . . . . . 2 . . . 1 . . . . 1 . . . . . . . . 1 Scanalyzers 9 | . . . 1 . . . . . . . . . . . . 2 . . . . . . . . . 2 . . . . 2 . . . . . 2 . . . Garrison Access 16 | . . . . . 1 . 1 . 1 . 1 . 1 . . 2 . . . . . . . . . . . . . . . . . . . 3 1 1 4 . Total Hacks 530 | . 25 1 44 . 9 5 8 5 23 3 29 2 27 2 14 41 . . . . 14 23 1 . 4 49 5 . . . 46 . . 17 . 23 34 9 38 29 Successful 254 | . 12 1 19 . 4 3 3 2 7 2 15 . 11 . 7 23 . . . . 9 11 1 . 2 26 5 . . . 21 . . 17 . 12 12 3 13 13 Failed 276 | . 13 . 25 . 5 2 5 3 16 1 14 2 16 2 7 18 . . . . 5 12 . . 2 23 . . . . 25 . . . . 11 22 6 25 16 Catastrophic 65 | . 2 . 3 . 2 1 1 . 2 . 4 2 2 1 1 4 . . . . 1 3 . . 1 4 . . . . 7 . . . . 3 5 2 7 7 Database Lockouts . | . . . . . . . . . . . . . . . . . . . . . . . . . . . . . . . . . . . . . . . . . Manual 220 | . 16 . 18 . 2 2 5 2 18 1 21 . 10 . 8 12 . . . . 10 15 1 . 4 5 . . . . 30 . . . . 5 11 . 11 13 Terminals 322 | . 21 . 28 . 3 5 6 5 10 3 17 2 19 2 10 18 . . . . 14 20 1 . 4 26 . . . . 22 . . . . 12 15 5 27 27 Fabricators 30 | . . . . . . . . . . . . . . . . 5 . . . . . . . . . . . . . . 15 . . . . 3 4 . 3 . Repair Stations 42 | . 2 . 3 . . . . . . . 6 . 5 . 1 5 . . . . . . . . . 12 . . . . . . . . . 3 4 . 1 . Recycling Units 36 | . 2 . 4 . 4 . . . 6 . 3 . . . 3 3 . . . . . 3 . . . 1 . . . . 5 . . . . . . . . 2 Scanalyzers 38 | . . . 9 . . . . . . . . . . . . 7 . . . . . . . . . 10 . . . . 4 . . . . . 8 . . . Garrison Access 39 | . . . . . 2 . 2 . 7 . 3 . 3 . . 3 . . . . . . . . . . . . . . . . . . . 5 3 4 7 . Terminal Hacks 117 | . 6 1 9 . . 2 . 2 1 2 5 . 5 . 3 3 . . . . 7 8 1 . 1 8 5 . . . 5 . . 17 . 3 3 3 7 10 Record 10 | . . . . . . . . . . . . . . . . . . . . . . . . . . . 5 . . . . . . 5 . . . . . . Part Schematic 5 | . 1 . . . . . . . . . . . . . . . . . . . . . . . . . . . . . . . . 4 . . . . . . Robot Analysis 12 | . 3 . 1 . . . . . . . 1 . 1 . . . . . . . 1 . . . . . . . . . . . . 4 . . . . 1 . Prototype ID Bank 14 | . 1 . 3 . . . . . . . . . . . . 1 . . . . 1 . . . . 1 . . . . . . . 4 . 1 . . . 2 Open Door 8 | . . 1 . . . . . . . 1 . . . . . . . . . . 1 2 1 . . . . . . . . . . . . . . . 2 . Branch Access Points 8 | . . . 1 . . . . . . . . . 1 . . 1 . . . . 1 . . . . 1 . . . . 1 . . . . 1 . . 1 . Emergency Access Points 2 | . . . . . . . . 1 . 1 . . . . . . . . . . . . . . . . . . . . . . . . . . . . . . Machine Index 1 | . . . . . . . . . . . . . . . . . . . . . . . . . . . . . . . . . . . . . . . 1 . Terminal Index 2 | . . . . . . . . . . . . . . . . . . . . . . . . . . . . . . . . . . . . . . 1 . 1 Alert Level 2 | . . . . . . . . . . . . . . . . . . . . . . . . . . 1 . . . . . . . . . . . 1 . . Unreport Threat 22 | . . . 3 . . . . . 1 . 3 . 1 . 3 . . . . . 1 3 . . . 1 . . . . 2 . . . . . 2 . 2 . Locate Traps 16 | . 1 . 1 . . . . . . . 1 . 2 . . 1 . . . . 2 2 . . . 1 . . . . 1 . . . . 1 . . . 3 Reprogram Traps 3 | . . . . . . . . . . . . . . . . . . . . . . . . . . . . . . . 1 . . . . . . . . 2 Recall Extermination 1 | . . . . . . . . . . . . . . . . . . . . . . . . . . . . . . . . . . . . . . . . 1 Registered Components 1 | . . . . . . . . . . . . . . . . . . . . . . . . . . 1 . . . . . . . . . . . . . . Registered Prototypes 1 | . . . . . . . . . . . . . . . . . . . . . . . . . . . . . . . . . . . . . . 1 . . Zone Layout 4 | . . . . . . . . . . . . . . . . . . . . . . 1 . . 1 2 . . . . . . . . . . . . . . Garrison Registry 1 | . . . . . . 1 . . . . . . . . . . . . . . . . . . . . . . . . . . . . . . . . . . Patrol Navigation 2 | . . . . . . 1 . 1 . . . . . . . . . . . . . . . . . . . . . . . . . . . . . . . . Protovariant Controls 1 | . . . . . . . . . . . . . . . . . . . . . . . . . . . . . . . . . . . . . 1 . . . Disengage Seal 1 | . . . . . . . . . . . . . . . . . . . . . . . . . . . . . . . . . . . . . . . . 1 Fabricator Hacks 12 | . . . . . . . . . . . . . . . . 3 . . . . . . . . . . . . . . 4 . . . . 1 1 . 3 . Network Status 3 | . . . . . . . . . . . . . . . . 1 . . . . . . . . . . . . . . 1 . . . . 1 . . . . Load Schematic 3 | . . . . . . . . . . . . . . . . 1 . . . . . . . . . . . . . . 1 . . . . . . . 1 . Build 6 | . . . . . . . . . . . . . . . . 1 . . . . . . . . . . . . . . 2 . . . . . 1 . 2 . Repair Station Hacks 27 | . 2 . 1 . . . . . . . 6 . 4 . . 4 . . . . . . . . . 7 . . . . . . . . . 1 2 . . . Scan Component 15 | . 1 . 1 . . . . . . . 3 . 2 . . 2 . . . . . . . . . 4 . . . . . . . . . 1 1 . . . Repair 12 | . 1 . . . . . . . . . 3 . 2 . . 2 . . . . . . . . . 3 . . . . . . . . . . 1 . . . Recycling Unit Hacks 10 | . 1 . 1 . 1 . . . 1 . . . . . 2 1 . . . . . 1 . . . . . . . . 1 . . . . . . . . 1 Process 1 | . . . . . . . . . . . . . . . 1 . . . . . . . . . . . . . . . . . . . . . . . . . Retrieve Matter 1 | . . . . . . . . . . . . . . . 1 . . . . . . . . . . . . . . . . . . . . . . . . . Retrieve Components 8 | . 1 . 1 . 1 . . . 1 . . . . . . 1 . . . . . 1 . . . . . . . . 1 . . . . . . . . 1 Scanalyzer 31 | . . . 7 . . . . . . . . . . . . 6 . . . . . . . . . 10 . . . . 4 . . . . . 4 . . . Insert Component 18 | . . . 5 . . . . . . . . . . . . 3 . . . . . . . . . 4 . . . . 3 . . . . . 3 . . . Analyze 13 | . . . 2 . . . . . . . . . . . . 3 . . . . . . . . . 6 . . . . 1 . . . . . 1 . . . Garrison Access Hacks 11 | . . . . . 1 . 1 . 1 . 1 . 1 . . 1 . . . . . . . . . . . . . . . . . . . 3 . . 2 . Unlock Access 5 | . . . . . 1 . 1 . 1 . 1 . 1 . . . . . . . . . . . . . . . . . . . . . . . . . . . Seal Access 6 | . . . . . . . . . . . . . . . . 1 . . . . . . . . . . . . . . . . . . . 3 . . 2 . Unauthorized Hacks 46 | . 3 . 1 . 2 1 2 . 4 . 3 . 1 . 2 5 . . . . 2 2 . . 1 1 . . . . 7 . . . . 4 2 . 1 2 Terminals 23 | . 2 . 1 . 1 1 1 . . . 1 . 1 . 2 3 . . . . 2 1 . . 1 1 . . . . 1 . . . . 2 . . . 2 Track 1 | . . . . . . . . . . . . . . . 1 . . . . . . . . . . . . . . . . . . . . . . . . . Assimilate 2 | . 1 . . . . . . . . . . . . . . 1 . . . . . . . . . . . . . . . . . . . . . . . . Botnet 17 | . 1 . 1 . 1 1 1 . . . 1 . 1 . . 2 . . . . 1 1 . . 1 1 . . . . 1 . . . . 2 . . . 1 Disrupt 2 | . . . . . . . . . . . . . . . 1 . . . . . 1 . . . . . . . . . . . . . . . . . . . Operators 1 | . . . . . . . . . . . . . . . . . . . . . . . . . . . . . . . . . . . . . . . . 1 Fabricators 7 | . . . . . . . . . . . . . . . . . . . . . . . . . . . . . . . 4 . . . . 2 1 . . . Prioritize 2 | . . . . . . . . . . . . . . . . . . . . . . . . . . . . . . . 1 . . . . . 1 . . . Liberate 3 | . . . . . . . . . . . . . . . . . . . . . . . . . . . . . . . 2 . . . . 1 . . . . Haulers 1 | . . . . . . . . . . . . . . . . . . . . . . . . . . . . . . . 1 . . . . . . . . . Recompile 1 | . . . . . . . . . . . . . . . . . . . . . . . . . . . . . . . . . . . . 1 . . . . Repair Stations . | . . . . . . . . . . . . . . . . . . . . . . . . . . . . . . . . . . . . . . . . . Recycling Units 10 | . 1 . . . . . . . 3 . 1 . . . . 2 . . . . . 1 . . . . . . . . 2 . . . . . . . . . Reject 5 | . . . . . . . . . 2 . 1 . . . . 1 . . . . . . . . . . . . . . 1 . . . . . . . . . Mask 4 | . . . . . . . . . 1 . . . . . . 1 . . . . . 1 . . . . . . . . 1 . . . . . . . . . Tunnel 1 | . 1 . . . . . . . . . . . . . . . . . . . . . . . . . . . . . . . . . . . . . . . Scanalyzers . | . . . . . . . . . . . . . . . . . . . . . . . . . . . . . . . . . . . . . . . . . Garrison Access 6 | . . . . . 1 . 1 . 1 . 1 . . . . . . . . . . . . . . . . . . . . . . . . . 1 . 1 . Reprogram 5 | . . . . . 1 . 1 . 1 . 1 . . . . . . . . . . . . . . . . . . . . . . . . . . . 1 . Jam 1 | . . . . . . . . . . . . . . . . . . . . . . . . . . . . . . . . . . . . . 1 . . . Data Cores Recovered 4 | . . . . . . . . . . . 1 . . . . . . . . . . . . . . . . . . . 1 . . . . 2 . . . . Used 2 | . . . . . . . . . . . . . . . . . . . . . . . . . . . . . . . 1 . . . . 1 . . . . Hacking Detections 136 | . 6 . 13 . 2 1 3 2 8 1 9 1 10 1 5 15 . . . . 5 8 2 . 2 8 . . . . 6 . . . . 4 8 2 9 5 Full Trace Events 20 | . 2 . 1 . . . 1 . 2 . 1 1 1 . 1 4 . . . . . . . . . 1 . . . . 2 . . . . . 1 1 1 . Feedback Events 1 | . . . . . . . . . . . . . . . . . . . . . . . . . . 1 . . . . . . . . . . . . . . Corruption 1 | . . . . . . . . . . . . . . . . . . . . . . . . . . 1 . . . . . . . . . . . . . . Feedback Blocked . | . . . . . . . . . . . . . . . . . . . . . . . . . . . . . . . . . . . . . . . . . Robot Schematics Acquired . | . . . . . . . . . . . . . . . . . . . . . . . . . . . . . . . . . . . . . . . . . Robots Built 2 | . . . . . . . . . . . . . . . . . . . . . . . . . . . . . . . 2 . . . . . . . . . Authchips . | . . . . . . . . . . . . . . . . . . . . . . . . . . . . . . . . . . . . . . . . . Time 84 | . . . . . . . . . . . . . . . . . . . . . . . . . . . . . . . 84 . . . . . . . . . Total Robot Build Rating 12 | . . . . . . . . . . . . . . . . . . . . . . . . . . . . . . . 12 . . . . . . . . . Part Schematics Acquired 14 | . 1 . 2 . . . . . . . . . . . . 2 . . . . . . . . . 3 . . . . 1 . . 4 . . 1 . . . Parts Built 7 | . . . . . . . . . . . . . . . . 1 . . . . . . . . . . . . . . 2 . . . . . 2 . 2 . Authchips 1 | . . . . . . . . . . . . . . . . . . . . . . . . . . . . . . . . . . . . . . . 1 . Time 368 | . . . . . . . . . . . . . . . . 51 . . . . . . . . . . . . . . 58 . . . . . 139 . 120 . Total Part Build Rating 51 | . . . . . . . . . . . . . . . . 1 . . . . . . . . . . . . . . 14 . . . . . 18 . 18 . Parts Repaired 12 | . 1 . . . . . . . . . 3 . 2 . . 2 . . . . . . . . . 3 . . . . . . . . . . 1 . . . Time 657 | . 26 . . . . . . . . . 139 . 104 . . 82 . . . . . . . . . 270 . . . . . . . . . . 36 . . . Parts Recycled . | . . . . . . . . . . . . . . . . . . . . . . . . . . . . . . . . . . . . . . . . . Recycled Matter 152 | . . . . . . . . . . . . . . . 152 . . . . . . . . . . . . . . . . . . . . . . . . . Retrieved Matter 206 | . . . . . . . . . . . . . . . 206 . . . . . . . . . . . . . . . . . . . . . . . . . Retrieved Components 42 | . 10 . 10 . 3 . . . 3 . . . . . . 3 . . . . . 6 . . . . . . . . 5 . . . . . . . . 2 Parts Scanalyzed 10 | . . . 2 . . . . . . . . . . . . 3 . . . . . . . . . 3 . . . . 1 . . . . . 1 . . . Part Schematics Acquired 9 | . . . 2 . . . . . . . . . . . . 2 . . . . . . . . . 3 . . . . 1 . . . . . 1 . . . Parts Damaged 2 | . . . 1 . . . . . . . . . . . . . . . . . . . . . . 1 . . . . . . . . . . . . . . Bothacking | -11 -10 -10 -9 -9 -8 -8 -8 -8 -8 -8 -8 -8 -8 -8 -8 -7 -7 -7 -7 -6 -6 -6 -6 -6 -6 -5 -5 -5 -5 -4 -4 -4 -4 -4 -3 -3 -3 -2 -1 -1 ------------ Run | Jun Mat Min Mat Min Mat Gar Mat Gar Mat Gar Mat Gar Mat Gar Mat Fac Low Low Zio Pro Fac Ext Cet Arc Hub Fac Upp Upp War Pro Fac Upp Upp Zhi Pro Res Tes Res Acc Com Used RIF Installer . | . . . . . . . . . . . . . . . . . . . . . . . . . . . . . . . . . . . . . . . . . Robots Hacked 14 | . . . . . . . . . . . . . 1 . . . . . 1 . 1 1 1 1 . . 1 . 3 . . . . 3 . . . . . 1 Non-combat 3 | . . . . . . . . . . . . . 1 . . . . . . . 1 . . . . . . . 1 . . . . . . . . . . . Combat 10 | . . . . . . . . . . . . . . . . . . . 1 . . 1 1 1 . . 1 . 2 . . . . 3 . . . . . . Robot Hacks Applied 14 | . . . . . . . . . . . . . 2 . . . . . 1 . 1 1 1 1 . . 1 . 3 . . . . 3 . . . . . . parse_system 11 | . . . . . . . . . . . . . . . . . . . 1 . . 1 1 1 . . 1 . 3 . . . . 3 . . . . . . no_distress 2 | . . . . . . . . . . . . . 1 . . . . . . . 1 . . . . . . . . . . . . . . . . . . . find_station 1 | . . . . . . . . . . . . . 1 . . . . . . . . . . . . . . . . . . . . . . . . . . . Manual 1 | . . . . . . . . . . . . . . . . . . . . . . . . . . . . . . . . . . . . . . . . 1 Relay Couplers Released 33 | . . . . . . . . . . 4 . . . 14 . 5 . . . . . . . . . . . . . . 3 . . . . . . 4 3 . Machine Destruction 23 | . . . . . . . . . . 4 . . . 10 . 2 . . . . . . . . . . . . . . . . . . . . . 4 3 . Programmers 10 | . . . . . . . . . . . . . . 4 . 3 . . . . . . . . . . . . . . 3 . . . . . . . . . Fabnet Peak Effective % . | . . . . . . . . . . . . . . . . . . . . . . . . . . . . . . . . . . . . . . . . . Robots Rewired 47 | . . . . . . 7 . 4 . 4 . 3 . 3 . . . . . . . 15 . . . . 2 2 3 . . 2 . . . . . . . 2 Allies Hacked 1 | . . . . . . . . . . . . . . . . . . . . . . . . . . . . . . . . . 1 . . . . . . . Hacks Repelled . | . . . . . . . . . . . . . . . . . . . . . . . . . . . . . . . . . . . . . . . . . Allies | -11 -10 -10 -9 -9 -8 -8 -8 -8 -8 -8 -8 -8 -8 -8 -8 -7 -7 -7 -7 -6 -6 -6 -6 -6 -6 -5 -5 -5 -5 -4 -4 -4 -4 -4 -3 -3 -3 -2 -1 -1 -------- Run | Jun Mat Min Mat Min Mat Gar Mat Gar Mat Gar Mat Gar Mat Gar Mat Fac Low Low Zio Pro Fac Ext Cet Arc Hub Fac Upp Upp War Pro Fac Upp Upp Zhi Pro Res Tes Res Acc Com Total Allies 65 | . . 1 . . 2 7 . 4 2 4 1 3 . 3 . 1 . . . . . 18 5 . . . 2 2 3 . 2 2 . . . . . . 1 2 Largest Group 8 | . . 1 . . 2 4 3 4 2 4 4 2 3 3 . 1 . . . . . 8 7 7 6 . 2 2 4 . 2 2 2 . . . . . 1 1 Highest-Rated Group 643 | . . 31 . . 32 55 48 160 10 134 134 21 15 63 . 26 . . . . . 328 643 643 500 . 78 60 169 . 98 79 79 . . . . . 64 90 Highest-Rated Ally 159 | . . 31 . . 16 16 16 40 5 39 39 21 5 21 . 26 . . . . . 159 159 143 96 . 49 49 49 . 49 49 49 . . . . . 64 90 Warlord Squad Rendezvous 2 | . . . . . . . . . . . . . . . . . . . . . 1 . . . . 1 . . . . . . . . . . . . . . Muscle 1 | . . . . . . . . . . . . . . . . . . . . . 1 . . . . . . . . . . . . . . . . . . . Chimera 1 | . . . . . . . . . . . . . . . . . . . . . . . . . . 1 . . . . . . . . . . . . . . Total Orders 19 | . . . . . . . . . . 2 . . . . . 3 . . . . . . . 2 2 . 2 2 . . 4 2 . . . . . . . . STAY 11 | . . . . . . . . . . 1 . . . . . 2 . . . . . . . 1 2 . 1 1 . . 2 1 . . . . . . . . FOLLOW 8 | . . . . . . . . . . 1 . . . . . 1 . . . . . . . 1 . . 1 1 . . 2 1 . . . . . . . . Ally Attacks 623 | . . 6 . . . 30 63 39 2 7 79 8 21 19 . . . . . . . 110 51 11 20 . 5 3 59 . 29 4 11 . . . . . 1 45 Total Damage 15210 | . . 106 . . . 582 660 713 7 136 1448 268 154 471 . . . . . . . 2301 1814 377 625 . 151 76 2158 . 789 131 479 . . . . . . 1764 Kills 107 | . . 3 . . . 5 8 10 . 2 19 2 1 1 . . . . . . . 10 13 2 5 . 2 . 14 . 4 . . . . . . . . 6 Allies Corrupted 6 | . . . . . . . . . . . . . . . . . . . . . . . . . 5 . . . . . . . . . . . . . 1 . Allies Melted 1 | . . . . . . . . . . . . . . . . . . . . . . . . . . . . . . . . . . . . . . 1 . . Intel | -11 -10 -10 -9 -9 -8 -8 -8 -8 -8 -8 -8 -8 -8 -8 -8 -7 -7 -7 -7 -6 -6 -6 -6 -6 -6 -5 -5 -5 -5 -4 -4 -4 -4 -4 -3 -3 -3 -2 -1 -1 ------- Run | Jun Mat Min Mat Min Mat Gar Mat Gar Mat Gar Mat Gar Mat Gar Mat Fac Low Low Zio Pro Fac Ext Cet Arc Hub Fac Upp Upp War Pro Fac Upp Upp Zhi Pro Res Tes Res Acc Com Robot Analysis Total 12 | . 3 . 1 . . . . . . . 1 . 1 . . . . . . . 1 . . . . . . . . . . . . 4 . . . . 1 . Derelict Logs Recovered 14 | . . 1 . . . . . . . . . . . . . . 1 1 1 1 . . . . . . 1 2 . 3 . . 3 . . . . . . . Drone Launches . | . . . . . . . . . . . . . . . . . . . . . . . . . . . . . . . . . . . . . . . . . Drone Recoveries . | . . . . . . . . . . . . . . . . . . . . . . . . . . . . . . . . . . . . . . . . . Exploration | -11 -10 -10 -9 -9 -8 -8 -8 -8 -8 -8 -8 -8 -8 -8 -8 -7 -7 -7 -7 -6 -6 -6 -6 -6 -6 -5 -5 -5 -5 -4 -4 -4 -4 -4 -3 -3 -3 -2 -1 -1 ------------- Run | Jun Mat Min Mat Min Mat Gar Mat Gar Mat Gar Mat Gar Mat Gar Mat Fac Low Low Zio Pro Fac Ext Cet Arc Hub Fac Upp Upp War Pro Fac Upp Upp Zhi Pro Res Tes Res Acc Com Turns Passed 73837 | 11 2654 1560 3811 1227 410 1456 1403 1324 2143 1588 1365 1263 1466 1961 912 3723 2743 3040 1758 1476 1641 1884 364 1979 473 1349 2304 2582 1155 1500 1549 2805 4057 376 3117 2076 2403 1230 2164 1535 Spaces Moved 28966 | 5 835 598 1422 421 133 488 437 465 677 536 456 332 472 599 275 1367 1285 1191 710 614 525 749 154 250 249 637 1317 1335 398 708 543 1248 1760 210 1429 905 971 624 868 768 Core 79 | . . . . . . . . . . . . . . . . . . . . . . . . 79 . . . . . . . . . . . . . . . . Treads 26862 | 5 835 598 1422 421 133 488 437 465 677 536 456 332 472 599 275 1296 556 1191 710 614 475 111 154 171 249 637 1317 1335 398 708 543 1248 1760 210 1429 905 971 624 816 283 Legs . | . . . . . . . . . . . . . . . . . . . . . . . . . . . . . . . . . . . . . . . . . Wheels 2025 | . . . . . . . . . . . . . . . . 71 729 . . . 50 638 . . . . . . . . . . . . . . . . 52 485 Hover . | . . . . . . . . . . . . . . . . . . . . . . . . . . . . . . . . . . . . . . . . . Flight . | . . . . . . . . . . . . . . . . . . . . . . . . . . . . . . . . . . . . . . . . . Fastest Speed 120 | 160 160 240 160 240 240 240 240 240 240 235 235 235 235 243 233 145 145 236 236 236 160 129 160 160 160 160 160 160 160 160 160 160 160 160 160 160 160 157 155 120 Average Speed 202 | 160 239 240 229 240 240 240 240 240 240 235 235 235 249 256 235 226 192 236 236 236 230 177 179 757 160 164 162 160 174 180 160 160 160 160 160 166 188 161 172 144 Slowest Speed 2050 | 160 240 240 240 240 240 240 240 240 240 240 235 235 250 330 243 236 236 236 236 236 236 240 240 2050 160 240 163 163 240 240 160 160 160 160 160 330 330 166 290 290 Overloaded Moves . | . . . . . . . . . . . . . . . . . . . . . . . . . . . . . . . . . . . . . . . . . Propulsion Burnouts . | . . . . . . . . . . . . . . . . . . . . . . . . . . . . . . . . . . . . . . . . . Robots Hopped 2 | . . . . . . . . . . . . . . . . . . . . . . . . . . 1 . . 1 . . . . . . . . . . . Cave-ins Triggered 2 | . . . . . . . . . . . . . . . . . . . . . . . . . . . . . . . . . . . . 2 . . . . Teleports 1 | . . . . . . . . . . . . . . . . . . . . . . . . . . . . . . . . . . . . 1 . . . . Exploration Rate (%) 61 | 2 94 97 99 56 23 47 39 50 60 63 55 36 54 54 44 39 98 98 86 81 16 90 73 89 34 23 98 98 46 88 17 98 93 63 97 36 83 26 33 29 Regions Visited 40 Branch Regions 20 Pre-discovered Areas 10 | . 1 . . . . . . . . . . . . . . . 1 . 1 1 . . . . . . 1 . . 1 . . 1 3 . . . . . . Known Exits Taken 21 | . . . 1 . 1 . 1 . 1 . 1 . 1 . . 1 . . . 1 1 . . . . 1 1 . . 1 1 1 1 1 1 1 1 1 1 . Unknown Exits Taken 14 | 1 1 1 . 1 . . . . . . . . . . 1 . 1 1 1 . . 1 1 1 1 . . 1 1 . . . . . . . . . . . Scrap Searched 33 | . . 1 . 1 . . . . . . . . . . . . 3 1 4 3 . . . . . . 3 4 . 2 . 1 5 . 5 . . . . . Spaces Dug 422 | . . . . 31 . 34 . 17 32 . . 3 . 4 14 7 13 2 . . 4 . . . . 1 9 4 15 . 4 25 6 . 71 60 6 1 49 10 Terrain Destroyed 2041 | . 24 . 33 67 10 79 39 31 95 20 20 35 30 32 155 148 17 10 . 31 93 66 46 7 154 14 24 22 16 92 58 70 52 . 109 95 31 30 166 20 Melee 7 | . . . . . . . . . . . . . . 3 . . . . . . . . . . . 1 . . 3 . . . . . . . . . . . Projectile 512 | . . . 25 4 10 11 13 11 22 . . . . 1 19 40 17 10 . 2 20 23 3 7 7 4 24 22 13 19 25 14 10 . 5 52 25 7 27 20 AOE 1519 | . 24 . 8 63 . 68 26 20 73 20 20 35 30 28 136 108 . . . 29 73 43 43 . 147 9 . . . 73 33 55 41 . 103 43 6 23 139 . Terrain Rammed . | . . . . . . . . . . . . . . . . . . . . . . . . . . . . . . . . . . . . . . . . . Walls Destroyed . | . . . . . . . . . . . . . . . . . . . . . . . . . . . . . . . . . . . . . . . . . Machines Disabled . | . . . . . . . . . . . . . . . . . . . . . . . . . . . . . . . . . . . . . . . . . Actions | -11 -10 -10 -9 -9 -8 -8 -8 -8 -8 -8 -8 -8 -8 -8 -8 -7 -7 -7 -7 -6 -6 -6 -6 -6 -6 -5 -5 -5 -5 -4 -4 -4 -4 -4 -3 -3 -3 -2 -1 -1 --------- Run | Jun Mat Min Mat Min Mat Gar Mat Gar Mat Gar Mat Gar Mat Gar Mat Fac Low Low Zio Pro Fac Ext Cet Arc Hub Fac Upp Upp War Pro Fac Upp Upp Zhi Pro Res Tes Res Acc Com Total 40828 | 7 1367 703 1831 625 193 711 706 626 1048 730 695 767 708 890 455 1831 1509 1354 794 630 823 1182 214 310 289 873 1423 1688 809 875 1032 1956 2920 245 2171 1268 1378 772 1360 1060 Wait 7230 | . 437 70 245 179 14 11 160 68 235 59 185 363 142 139 102 198 148 119 50 8 81 106 8 33 12 131 38 246 302 128 270 576 994 . 641 153 186 48 231 114 Move 28921 | 4 834 597 1421 421 132 487 436 464 676 535 455 331 472 597 274 1366 1284 1190 709 613 524 748 153 249 248 634 1316 1334 395 707 542 1247 1759 209 1428 902 970 623 867 768 Hop 2 | . . . . . . . . . . . . . . . . . . . . . . . . . . 1 . . 1 . . . . . . . . . . . Pick Up 327 | . 13 9 20 2 10 2 14 2 8 7 5 . 3 9 4 24 10 1 12 . 12 5 5 5 3 10 6 5 7 1 13 1 31 3 7 11 15 6 17 9 Fast Attach 258 | . 4 . 1 . . 5 1 3 6 1 5 1 7 13 5 21 3 1 2 . 17 14 6 . 1 12 3 9 12 . 8 . 3 8 4 11 20 13 17 21 Attach 154 | . 2 . 5 4 2 4 2 2 3 5 2 1 . 2 2 18 6 1 . . 6 7 . . 1 7 1 3 3 1 7 4 1 . . 9 13 3 19 8 Detach 79 | . 3 . 2 4 . 2 . 2 2 . . 1 . 5 . 6 2 . . . 5 2 2 . . 2 2 . 1 . 3 1 4 1 . 1 11 1 8 6 Swap 481 | 3 . 7 12 1 3 3 7 1 13 10 3 8 6 24 11 12 11 2 8 2 27 24 11 2 1 20 12 2 7 9 30 32 31 4 30 21 13 9 19 30 Drop 449 | . 2 8 24 2 8 7 19 2 14 1 5 2 9 16 9 39 11 3 12 . 22 13 13 5 5 18 6 10 19 1 13 2 32 9 11 18 16 18 9 16 Fire 2073 | . 61 9 82 11 24 45 66 32 86 66 33 38 43 74 44 115 30 37 . 7 69 63 15 15 18 31 29 51 40 28 103 51 50 7 49 125 127 51 165 83 Melee 52 | . . 3 . . . . . . . . . . 2 9 . . . . 1 . 1 1 1 1 . 1 2 . 22 . . . . 4 . . . . . 4 Ram 2 | . . . . . . . . . . . . . . . . . . . . . . 1 . . . . . . . . . . . . . . 1 . . . Kick . | . . . . . . . . . . . . . . . . . . . . . . . . . . . . . . . . . . . . . . . . . Crush 81 | . 11 . 19 1 . . 1 1 5 . 2 . 1 2 4 5 . . . . 3 . . . . 6 . 1 . . 3 . 1 . . . 6 . 8 1 Escape Stasis 45 | . . . . . . 4 . . . 17 . 2 . . . . . . . . . 20 . . . . . . . . . . . . . 2 . . . . Rewire 488 | . . . . . . 141 . 49 . 29 . 20 . . . . . . . . . 173 . . . . 8 27 . . . 41 . . . . . . . . Trap 186 | . . . . . . . . . . . . . 23 . . 27 4 . . . 56 5 . . . . . . . . 40 1 14 . 1 15 . . . . Miscellaneous . | . . . . . . . . . . . . . . . . . . . . . . . . . . . . . . . . . . . . . . . . . Route ------- -11/Junkyard -10/Materials (discovered 4 exits: *Mat x3 / *Min) -10/Mines (discovered 2 exits: *Mat x2) -9/Materials (discovered 4 exits: *Mat x3 / *Min) -9/Mines (discovered 2 exits: *Mat x2) -8/Materials -8/Garrison (discovered 4 exits: *Fac x3 / *Mat) -8/Materials (discovered 2 exits: *Fac / Gar) -8/Garrison (discovered 2 exits: *Mat x2) -8/Materials (discovered 3 exits: *Fac x2 / Gar) -8/Garrison (discovered 2 exits: *Mat x2) -8/Materials (discovered 3 exits: *Fac x2 / Gar) -8/Garrison (discovered 2 exits: *Mat x2) -8/Materials -8/Garrison (discovered 2 exits: *Mat x2) -8/Materials -7/Factory (discovered 6 exits: *Fac x2 / *Sto x2 / *Low x2) -7/Lower Caves (discovered 2 exits: [*Low] / [*Zio]) -7/Lower Caves (discovered 2 exits: *Fac / [*Zio]) -7/Zion -6/Proximity Caves -6/Factory (discovered 5 exits: *Fac / *Low x2 / *Ext x2) -6/Extension (discovered 2 exits: *Fac / *Cet) -6/Cetus (discovered 2 exits: *Fac / [*Arc]) -6/Archives (discovered 3 exits: *Fac / *Hub x2) -6/Hub_04(d) -5/Factory (discovered 3 exits: *Fac / *Upp x2) -5/Upper Caves -5/Upper Caves (discovered 2 exits: *Fac / *War) -5/Warlord -4/Proximity Caves -4/Factory (discovered 4 exits: *Res / *Upp x2 / Arm) -4/Upper Caves -4/Upper Caves (discovered 2 exits: *Res / *Zhi) -4/Zhirov -3/Proximity Caves -3/Research (discovered 3 exits: *Res / *Tes x2) -3/Testing -2/Research (discovered 2 exits: *Acc x2) -1/Access (discovered 2 exits: [*Sur] / *Com) -1/Command Free Derelict Territories History --------- Turn | Location | Event 6 | -11/Junkyard | Discovered new exit (range 3) 12 | -11/Junkyard | Entered Materials 314 | -10/Materials | Build established: Mutant 385 | -10/Materials | Discovered new exit (range 3) 948 | -10/Materials | Repaired Lgt. Treads 996 | -10/Materials | Discovered new exit (range 16) 1280 | -10/Materials | Discovered new exit (range 15) 2505 | -10/Materials | Discovered new exit (range 7) 2666 | -10/Materials | Entered Mines 2736 | -10/Mines | Learned Materials emergency access door positions 2823 | -10/Mines | Met a Derelict testing a Signal Generator 2825 | -10/Mines | Discovered new exit (range 15) 3148 | -10/Mines | Met a Derelict who couldn't figure out how to use a Trap Extractor 3719 | -10/Mines | Deemed a non-threat by the Exiles lab entrance 3840 | -10/Mines | YI-UF0 nonchalantly dropped a Grenade Launcher on the ground 3847 | -10/Mines | Discovered new exit (range 4) 3868 | -10/Mines | Destroyed YI-UF0 3877 | -10/Mines | Found Prototype Storage 3881 | -10/Mines | Found Prototype Launcher 4226 | -10/Mines | Entered Materials 4226 | -9/Materials | Evolved 2 slots: Propulsion x1, Utility x1 4349 | -9/Materials | Identified YI-UF0's Bottomless Matter Pit 4349 | -9/Materials | Identified YI-UF0's Doublenader 4625 | -9/Materials | Destroyed 7 combat bots 4823 | -9/Materials | Identified exit to Mines 4946 | -9/Materials | Discovered new exit (range 9) 6440 | -9/Materials | Discovered new exit (range 16) 7083 | -9/Materials | Discovered new exit (range 9) 8037 | -9/Materials | Entered Mines 8044 | -9/Mines | Received a Rocket Launcher from a helpful Derelict 8086 | -9/Mines | Discovered new exit (range 11) 8414 | -9/Mines | Discovered new exit (range 5) 8737 | -9/Mines | Assembled infested the area 9264 | -9/Mines | Entered Materials 9264 | -8/Materials | Evolved 2 slots: Utility x2 9495 | -8/Materials | Garrison activated, responded to threat 9649 | -8/Materials | Identified exit to Garrison 9674 | -8/Materials | Entered Garrison 9674 | -8/Garrison | Accompanied by 2 allies 9710 | -8/Garrison | Triggered checkpoint 9790 | -8/Garrison | Triggered checkpoint 9973 | -8/Garrison | Triggered checkpoint 10000 | -8/Garrison | Triggered checkpoint 10023 | -8/Garrison | Triggered checkpoint 10324 | -8/Garrison | Triggered checkpoint 10384 | -8/Garrison | Discovered new exit (range 6) 10413 | -8/Garrison | Discovered new exit (range 14) 10492 | -8/Garrison | Triggered checkpoint 10659 | -8/Garrison | Discovered new exit (range 20) 10659 | -8/Garrison | Discovered new exit (range 70) 10659 | -8/Garrison | Discovered new exit (range 65) 10659 | -8/Garrison | Discovered new exit (range 34) 10737 | -8/Garrison | Build established: Scavenger-Mutant 11130 | -8/Garrison | Entered Materials 11130 | -8/Materials | Accompanied by 3 allies 11702 | -8/Materials | Garrison activated, responded to threat 11799 | -8/Materials | Build established: Mutant 12206 | -8/Materials | Discovered new exit (range 9) 12226 | -8/Materials | Identified exit to Garrison 12533 | -8/Materials | Entered Garrison 12556 | -8/Garrison | Triggered checkpoint 12628 | -8/Garrison | Triggered checkpoint 12866 | -8/Garrison | Triggered checkpoint 12972 | -8/Garrison | Triggered checkpoint 13002 | -8/Garrison | Triggered checkpoint 13268 | -8/Garrison | Triggered checkpoint 13358 | -8/Garrison | Triggered checkpoint 13533 | -8/Garrison | Discovered new exit (range 14) 13831 | -8/Garrison | Discovered new exit (range 11) 13857 | -8/Garrison | Entered Materials 15333 | -8/Materials | Discovered new exit (range 20) 15761 | -8/Materials | Discovered new exit (range 20) 15776 | -8/Materials | Garrison activated, responded to threat 15857 | -8/Materials | First assault squad dispatched 15979 | -8/Materials | Identified exit to Garrison 15995 | -8/Materials | Garrison activated, responded to threat 16000 | -8/Materials | Entered Garrison 16000 | -8/Garrison | Accompanied by 1 ally 16064 | -8/Garrison | Triggered checkpoint 16067 | -8/Garrison | Garrison Relay disabled 16373 | -8/Garrison | Destroyed 7 combat bots 16605 | -8/Garrison | Triggered checkpoint 16661 | -8/Garrison | Triggered checkpoint 16817 | -8/Garrison | Discovered new exit (range 12) 16985 | -8/Garrison | Triggered checkpoint 17358 | -8/Garrison | Triggered checkpoint 17562 | -8/Garrison | Discovered new exit (range 12) 17588 | -8/Garrison | Entered Materials 17588 | -8/Materials | Accompanied by 4 allies 17613 | -8/Materials | Build established: Commander-Mutant 17881 | -8/Materials | Core integrity fell below 50% 18175 | -8/Materials | Discovered new exit (range 8) 18553 | -8/Materials | Repaired Hvy. Missile Launcher 18598 | -8/Materials | Repaired Imp. Medium Armor Plating 18651 | -8/Materials | Repaired Hvy. Ion Engine 18729 | -8/Materials | Build established: Scavenger-Mutant 18738 | -8/Materials | Discovered new exit (range 3) 18941 | -8/Materials | Identified exit to Garrison 18953 | -8/Materials | Entered Garrison 18953 | -8/Garrison | Accompanied by 1 ally 19034 | -8/Garrison | Triggered checkpoint 19262 | -8/Garrison | Build established: Mutant 19422 | -8/Garrison | Triggered checkpoint 19544 | -8/Garrison | Triggered checkpoint 19560 | -8/Garrison | Discovered new exit (range 12) 19640 | -8/Garrison | Discovered new exit (range 6) 20216 | -8/Garrison | Entered Materials 20216 | -8/Materials | Accompanied by 3 allies 21201 | -8/Materials | Repaired Imp. Medium Armor Plating 21490 | -8/Materials | Repaired Enh. Autogun 21682 | -8/Materials | Identified exit to Garrison 21682 | -8/Materials | Entered Garrison 21744 | -8/Garrison | Triggered checkpoint 21858 | -8/Garrison | Garrison Relay disabled 21929 | -8/Garrison | Spotted B-75 Beast 22118 | -8/Garrison | Triggered checkpoint 22280 | -8/Garrison | Destroyed B-75 Beast 22414 | -8/Garrison | Triggered checkpoint 22415 | -8/Garrison | Triggered checkpoint 22415 | -8/Garrison | Triggered checkpoint 22475 | -8/Garrison | Destroyed 12 combat bots 22748 | -8/Garrison | Discovered new exit (range 12) 22871 | -8/Garrison | Triggered checkpoint 23230 | -8/Garrison | Attempted to access garrison exit controls, blocked by remote lockdown 23597 | -8/Garrison | Discovered new exit (range 19) 23643 | -8/Garrison | Entered Materials 23859 | -8/Materials | Build established: Scavenger-Mutant 24043 | -8/Materials | First assault squad dispatched 24079 | -8/Materials | Core integrity fell below 20% 24446 | -8/Materials | Build established: Mutant 24507 | -8/Materials | Discovered new exit (range 9) 24555 | -8/Materials | Entered Factory 24555 | -7/Factory | Evolved 2 slots: Propulsion x1, Utility x1 24896 | -7/Factory | Discovered new exit (range 7) 24916 | -7/Factory | Identified exit to Storage 25544 | -7/Factory | Repaired Adv. Treads 25589 | -7/Factory | Repaired Imp. Cooling System 25772 | -7/Factory | Discovered exit to Storage (range 7) 26758 | -7/Factory | Fabricated Huge Storage Unit (x1) 26922 | -7/Factory | Discovered new exit (range 20) 26987 | -7/Factory | First assault squad dispatched 27041 | -7/Factory | Identified exit to Factory 27215 | -7/Factory | Discovered exit to Factory (range 19) 27600 | -7/Factory | Build established: Scavenger-Mutant 28130 | -7/Factory | Identified exit to Lower Caves 28278 | -7/Factory | Entered Lower Caves 28279 | -7/Lower Caves | Encountered a Warlord checkpoint 28284 | -7/Lower Caves | Met a Warlord Commander 28285 | -7/Lower Caves | Learned location of Warlord (-5) 28290 | -7/Lower Caves | Found Encrypted Comm Array 28962 | -7/Lower Caves | A Derelict revealed a hidden shortcut to a safe place 29018 | -7/Lower Caves | Spotted B-75 Beast 29146 | -7/Lower Caves | Destroyed B-75 Beast 29207 | -7/Lower Caves | Learned Factory emergency access door positions 29455 | -7/Lower Caves | Build established: Mutant 30543 | -7/Lower Caves | Discovered new exit (range 13) 30563 | -7/Lower Caves | Attracted the attention of an 0b10 checkpoint 31021 | -7/Lower Caves | Entered another Lower Caves area 31373 | -7/Lower Caves | Discovered exit to Factory (range 10) 31761 | -7/Lower Caves | Encountered a Warlord checkpoint 31800 | -7/Lower Caves | Spotted B-75 Beast 31877 | -7/Lower Caves | Destroyed B-75 Beast 32951 | -7/Lower Caves | Learned Factory emergency access door positions 34009 | -7/Lower Caves | Discovered new exit (range 6) 34061 | -7/Lower Caves | Entered Zion 34092 | -7/Zion | Learned Factory emergency access door positions 34217 | -7/Zion | Discovered new exit (range 17) 34283 | -7/Zion | Visited the Megawrench Repair Shop 34291 | -7/Zion | Megawrench repaired 11 parts 34535 | -7/Zion | Learned Factory emergency access door positions 34711 | -7/Zion | Learned Factory recycling unit intel 34749 | -7/Zion | Learned location of Recycling (-7) 34797 | -7/Zion | Found Prototype Launcher 34833 | -7/Zion | Identified Rocket Array 35022 | -7/Zion | Found Prototype Special Weapon 35022 | -7/Zion | Identified RU-N14's Throwing Claymores 35036 | -7/Zion | Found RU-N14's Throwing Claymores 35040 | -7/Zion | Found RU-N14's Throwing Claymores 35044 | -7/Zion | Found RU-N14's Throwing Claymores 35819 | -7/Zion | Entered Proximity Caves 37156 | -6/Proximity Caves | Discovered exit to Factory (range 4) 37295 | -6/Proximity Caves | Entered Factory 37295 | -6/Factory | Evolved 2 slots: Power x1, Utility x1 37297 | -6/Factory | Loaded intel: 6 recycling unit locations 37482 | -6/Factory | Identified exit to Lower Caves 37482 | -6/Factory | Identified exit to Extension 37780 | -6/Factory | Joined by Warlord Muscle squad 37876 | -6/Factory | Spotted B-75 Beast 38184 | -6/Factory | Discovered new exit (range 11) 38623 | -6/Factory | Cargo convoy interrupted 38669 | -6/Factory | Destroyed 9 combat bots 38742 | -6/Factory | Found Prototype Processor 38742 | -6/Factory | Identified Spectral Analyzer 38936 | -6/Factory | Entered Extension 39286 | -6/Extension | First assault squad dispatched 39718 | -6/Extension | Rescued a captive Derelict 39719 | -6/Extension | Rescued a captive Derelict 39967 | -6/Extension | Spotted B-75 Beast 39976 | -6/Extension | Spotted B-75 Beast 39991 | -6/Extension | Destroyed B-75 Beast 40029 | -6/Extension | Destroyed B-75 Beast 40435 | -6/Extension | Build established: Scavenger-Mutant 40549 | -6/Extension | Rescued A7 40803 | -6/Extension | Discovered new exit (range 10) 40806 | -6/Extension | Discovered new exit (range 6) 40820 | -6/Extension | Entered Cetus 40820 | -6/Cetus | Accompanied by 7 allies (A7) 40825 | -6/Cetus | Acquired a Cetus Manufacturing Module code from A7 40844 | -6/Cetus | Spotted Cetus Guard 40844 | -6/Cetus | Spotted Cetus Guard 40845 | -6/Cetus | Spotted Cetus Guard 40847 | -6/Cetus | Destroyed Cetus Guard 40863 | -6/Cetus | Allies destroyed Cetus Guard 40864 | -6/Cetus | Allies destroyed Cetus Guard 40864 | -6/Cetus | Spotted Cetus Guard 40865 | -6/Cetus | Allies destroyed Cetus Guard 40976 | -6/Cetus | Started Cetus Manufacturing Module 40987 | -6/Cetus | Escorted A7 to Cetus Mainframe 40990 | -6/Cetus | Discovered new exit (range 24) 41001 | -6/Cetus | Manufactured an Enhanced Grunt 41026 | -6/Cetus | Manufactured an Enhanced Grunt 41043 | -6/Cetus | Spotted Cetus Guard 41043 | -6/Cetus | Spotted Cetus Guard 41048 | -6/Cetus | Discovered new exit (range 24) 41049 | -6/Cetus | Spotted Cetus Guard 41051 | -6/Cetus | Manufactured an Enhanced Grunt 41058 | -6/Cetus | Spotted Cetus Guard 41063 | -6/Cetus | Allies destroyed Cetus Guard 41071 | -6/Cetus | Allies destroyed Cetus Guard 41073 | -6/Cetus | Destroyed Cetus Guard 41074 | -6/Cetus | Allies destroyed Cetus Guard 41076 | -6/Cetus | Manufactured an Enhanced Grunt 41091 | -6/Cetus | Met Revision 17 41101 | -6/Cetus | Manufactured an Enhanced Grunt 41184 | -6/Cetus | Entered Archives 41184 | -6/Archives | Accompanied by 7 allies (A7) 41189 | -6/Archives | Received a hacking code to weaken MAIN.C 41242 | -6/Archives | Discovered new exit (range 23) 41258 | -6/Archives | Discovered new exit (range 23) 41266 | -6/Archives | Discovered new exit (range 21) 43163 | -6/Archives | Entered Hub_04(d) 43163 | -6/Hub_04(d) | Accompanied by 6 allies 43492 | -6/Hub_04(d) | Network Hub disabled 43527 | -6/Hub_04(d) | Spotted Lightning 43535 | -6/Hub_04(d) | Network Hub disabled 43535 | -6/Hub_04(d) | Spotted Lightning 43541 | -6/Hub_04(d) | Garrison activated, responded to threat 43550 | -6/Hub_04(d) | Destroyed Lightning 43556 | -6/Hub_04(d) | Destroyed Lightning 43602 | -6/Hub_04(d) | Discovered new exit (range 16) 43610 | -6/Hub_04(d) | Spotted B-75 Beast 43612 | -6/Hub_04(d) | Found Prototype Energy Cannon 43627 | -6/Hub_04(d) | Spotted Lightning 43636 | -6/Hub_04(d) | Entered Factory 43636 | -5/Factory | Evolved 2 slots: Propulsion x1, Utility x1 43706 | -5/Factory | Identified EMDS 43778 | -5/Factory | Identified exit to Upper Caves 44181 | -5/Factory | Repaired Centrium Heavy Treads 44302 | -5/Factory | Repaired Centrium Heavy Treads 44381 | -5/Factory | Discovered new exit (range 7) 44442 | -5/Factory | Joined by Warlord Chimera squad 44455 | -5/Factory | Repaired Centrium Medium Armor Plating? 44676 | -5/Factory | Garrison activated, responded to threat 44985 | -5/Factory | Entered Upper Caves 44986 | -5/Upper Caves | Encountered a Warlord checkpoint 45071 | -5/Upper Caves | Build established: Mutant 45554 | -5/Upper Caves | Found Alien Artifact 45880 | -5/Upper Caves | Identified Dimensional Node Initializer 45880 | -5/Upper Caves | Initialized slip node 45985 | -5/Upper Caves | Attracted the attention of an 0b10 outpost 46364 | -5/Upper Caves | Identified exit to Upper Caves 46436 | -5/Upper Caves | Learned location of Armory (-4) 46436 | -5/Upper Caves | Learned Armory terminal intel 46436 | -5/Upper Caves | Learned Armory garrison access intel 46508 | -5/Upper Caves | Destroyed 5D-PAA(g) 46670 | -5/Upper Caves | Attracted the attention of an 0b10 checkpoint 46805 | -5/Upper Caves | Build established: Scavenger-Mutant 47289 | -5/Upper Caves | Entered another Upper Caves area 47289 | -5/Upper Caves | Accompanied by 1 ally 47289 | -5/Upper Caves | Discovered new exit (range 13) 47291 | -5/Upper Caves | Attracted the attention of an 0b10 checkpoint 47891 | -5/Upper Caves | Attracted the attention of an 0b10 outpost 47929 | -5/Upper Caves | Destroyed 7 combat bots 48457 | -5/Upper Caves | Learned Factory emergency access door positions 49202 | -5/Upper Caves | Discovered new exit (range 3) 49330 | -5/Upper Caves | Learned Factory trap positions 49871 | -5/Upper Caves | Entered Warlord 49871 | -5/Warlord | Accompanied by 1 ally 50180 | -5/Warlord | Met Warlord 50205 | -5/Warlord | Warlord's base attacked by MAIN.C 50255 | -5/Warlord | Found Prototype Reactor 50255 | -5/Warlord | Identified Vortex Chain Reactor 50286 | -5/Warlord | Found Spectral Analyzer 50290 | -5/Warlord | Found Prototype Device 50290 | -5/Warlord | Identified System Purifier 50299 | -5/Warlord | Found Prototype Hackware 50555 | -5/Warlord | Warlord forces counterattacked 50586 | -5/Warlord | Spotted Executioner 50672 | -5/Warlord | Spotted Striker 50672 | -5/Warlord | Spotted Executioner 50682 | -5/Warlord | Discovered new exit (range 20) 50711 | -5/Warlord | Spotted Executioner 50714 | -5/Warlord | Spotted Striker 50805 | -5/Warlord | Spotted Executioner 50813 | -5/Warlord | Allies destroyed Executioner 50817 | -5/Warlord | Spotted Striker 50880 | -5/Warlord | Warlord base infiltrated, sounded retreat 50907 | -5/Warlord | Spotted Executioner 50907 | -5/Warlord | Spotted B-86 Titan 50908 | -5/Warlord | Destroyed Executioner 50948 | -5/Warlord | Found Prototype Device 50948 | -5/Warlord | Identified Adv. Kinecellerator 51005 | -5/Warlord | Spotted Executioner 51005 | -5/Warlord | Spotted Striker 51026 | -5/Warlord | Entered Proximity Caves 51027 | -4/Proximity Caves | Identified exit to Factory 51608 | -4/Proximity Caves | Learned location of Quarantine (-2) 51706 | -4/Proximity Caves | Attracted the attention of an 0b10 checkpoint 52024 | -4/Proximity Caves | Spotted B-86 Titan 52162 | -4/Proximity Caves | Learned location of 1 exit from Research 52526 | -4/Proximity Caves | Entered Factory 52526 | -4/Factory | Evolved 2 slots: Propulsion x1, Utility x1 52527 | -4/Factory | Loaded intel: 99 trap records 52705 | -4/Factory | Fabricated Y-64 Sentinel? 52787 | -4/Factory | Identified exit to Upper Caves 52787 | -4/Factory | Identified exit to Armory 52915 | -4/Factory | Discovered new exit (range 23) 53133 | -4/Factory | Identified System Mapper 53363 | -4/Factory | Found Prototype Launcher 53937 | -4/Factory | Fabricated Hyp. Mass Driver (x2) 54075 | -4/Factory | Entered Upper Caves 54484 | -4/Upper Caves | Build established: Scavenger-Skirmisher 55844 | -4/Upper Caves | Spotted B-86 Titan 56726 | -4/Upper Caves | Attracted the attention of an 0b10 checkpoint 56753 | -4/Upper Caves | Discovered new exit (range 7) 56875 | -4/Upper Caves | Identified Tesla Bomb Launcher 56879 | -4/Upper Caves | Identified exit to Upper Caves 56880 | -4/Upper Caves | Entered another Upper Caves area 56880 | -4/Upper Caves | Accompanied by 2 allies 56881 | -4/Upper Caves | Discovered new exit (range 11) 56891 | -4/Upper Caves | Learned Research interactive machine intel 56929 | -4/Upper Caves | Identified exit to Research 56964 | -4/Upper Caves | Spotted B-86 Titan 57913 | -4/Upper Caves | Learned Research security intel 59083 | -4/Upper Caves | Attracted the attention of an 0b10 base 59819 | -4/Upper Caves | Discovered new exit (range 11) 59839 | -4/Upper Caves | Identified exit to Zhirov 60326 | -4/Upper Caves | Build established: Trapper-Skirmisher 60683 | -4/Upper Caves | Build established: Scavenger-Skirmisher 60937 | -4/Upper Caves | Entered Zhirov 60937 | -4/Zhirov | Discovered new exit (range 3) 60966 | -4/Zhirov | Met Zhirov 61016 | -4/Zhirov | Learned location of Testing (-3) 61016 | -4/Zhirov | Learned location of Command (-1) 61025 | -4/Zhirov | Zhirov requested help retrieving the SGEMP Prototype 61051 | -4/Zhirov | Found Alien Artifact 61051 | -4/Zhirov | Identified Integrated Reactor 61051 | -4/Zhirov | Installed Integrated Reactor, increased core energy generation (+10) 61182 | -4/Zhirov | Found Alien Artifact 61311 | -4/Zhirov | Identified exit to Proximity Caves 61313 | -4/Zhirov | Entered Proximity Caves 61343 | -3/Proximity Caves | Build established: Scavenger-Mutant 61534 | -3/Proximity Caves | Attracted the attention of an 0b10 outpost 62079 | -3/Proximity Caves | Build established: Scavenger-Skirmisher 62975 | -3/Proximity Caves | Spotted B-86 Titan 62986 | -3/Proximity Caves | Destroyed 7 combat bots 63253 | -3/Proximity Caves | Build established: Scavenger-Mutant 63621 | -3/Proximity Caves | Attracted the attention of an 0b10 checkpoint 63626 | -3/Proximity Caves | Discovered exit to Research (range 13) 64430 | -3/Proximity Caves | Entered Research 64430 | -3/Research | Evolved 2 slots: Power x1, Utility x1 64431 | -3/Research | Identified exit to Testing 64433 | -3/Research | Loaded intel: 41 interactive machine locations 64484 | -3/Research | Build established: Scavenger-Skirmisher 64630 | -3/Research | Revision forces began assault on 0b10 64658 | -3/Research | Met up with Revision 17++ 64924 | -3/Research | Spotted B-86 Titan 64977 | -3/Research | Build established: Scavenger-Mutant 65130 | -3/Research | Research terminal network offline 65957 | -3/Research | Spotted Striker 65975 | -3/Research | Destroyed Striker 66140 | -3/Research | Spotted Executioner 66142 | -3/Research | Spotted Striker 66151 | -3/Research | Discovered new exit (range 20) 66178 | -3/Research | Spotted Striker 66178 | -3/Research | Spotted Executioner 66178 | -3/Research | Spotted Executioner 66182 | -3/Research | Identified Transdimensional Reconstructor 66182 | -3/Research | Warped through subspace 66182 | -3/Research | Spotted Striker 66199 | -3/Research | Destroyed Striker 66214 | -3/Research | Destroyed Striker 66232 | -3/Research | Spotted Striker 66240 | -3/Research | Destroyed Executioner 66244 | -3/Research | Destroyed Striker 66279 | -3/Research | Destroyed 7 combat bots 66284 | -3/Research | Spotted Striker 66287 | -3/Research | Spotted Executioner 66288 | -3/Research | Spotted Striker 66302 | -3/Research | Destroyed Striker 66317 | -3/Research | Destroyed Striker 66317 | -3/Research | Spotted Striker 66320 | -3/Research | Destroyed Executioner 66332 | -3/Research | Destroyed Striker 66345 | -3/Research | Lost 4 parts (3u1w) 66396 | -3/Research | Destroyed 11 combat bots 66400 | -3/Research | Spotted Striker 66402 | -3/Research | Spotted Striker 66404 | -3/Research | Spotted Striker 66438 | -3/Research | Crushed by falling debris 66439 | -3/Research | System corruption reached 10% 66469 | -3/Research | Destroyed Striker 66471 | -3/Research | Crushed by falling debris 66499 | -3/Research | Core integrity fell below 50% 66506 | -3/Research | Entered Testing 66529 | -3/Testing | Lost 13 parts (2p3n6u2w) 66572 | -3/Testing | Found Prototype Energy Cannon 66576 | -3/Testing | Found Prototype Energy Cannon 66593 | -3/Testing | Identified Potential Cannon (x2) 66736 | -3/Testing | Build established: Trapper-Mutant 66997 | -3/Testing | Found Unknown Launcher 66997 | -3/Testing | Identified Gamma Bomb Array 67049 | -3/Testing | Found Prototype Processor 67049 | -3/Testing | Identified Exp. Signal Interpreter 67148 | -3/Testing | Found Prototype Device 67152 | -3/Testing | Identified Exp. EM Disruption Field 67196 | -3/Testing | Found Prototype Energy Gun 67207 | -3/Testing | Identified Tachyon Dispersion Ray 67792 | -3/Testing | Fabricated Lgt. Quantum Reactor (x2) 67994 | -3/Testing | Repaired Centrium Medium Armor Plating 68745 | -3/Testing | Found Exp. Targeting Computer 68839 | -3/Testing | Discovered new exit (range 15) 68895 | -3/Testing | Identified exit to Research 68909 | -3/Testing | Entered Research 68909 | -2/Research | Warlord forces began assault on 0b10 68909 | -2/Research | Evolved 2 slots: Utility x2 68934 | -2/Research | Distinguished unit "Knights of the Pentagonal Table" dispatched to help 68934 | -2/Research | Distinguished unit "Metalheads" dispatched to help 69019 | -2/Research | Research machine network offline 69108 | -2/Research | Discovered new exit (range 21) 69124 | -2/Research | Build established: Trapper-Skirmisher 69150 | -2/Research | Found Antimissile System 69238 | -2/Research | Identified exit to Access 69324 | -2/Research | Spotted Executioner 69324 | -2/Research | Spotted Executioner 69324 | -2/Research | Spotted MX-IZO(K) 69774 | -2/Research | Met up with Warlord 69785 | -2/Research | Spotted Striker 69786 | -2/Research | Spotted Striker 69822 | -2/Research | Spotted Striker 69828 | -2/Research | P-80 Master assimilated allied 69-MZF(M) 69830 | -2/Research | P-80 Master assimilated allied 6M-L8F(M) 69833 | -2/Research | P-80 Master assimilated allied 1J-8XM(M) 69882 | -2/Research | Found Prototype Processor 69883 | -2/Research | Identified Exp. Core Analyzer 69920 | -2/Research | Spotted Striker 69942 | -2/Research | Spotted Striker 69965 | -2/Research | Destroyed Striker 69970 | -2/Research | Destroyed Striker 70005 | -2/Research | Lost 3 parts (2p1u) 70022 | -2/Research | Destroyed 9 combat bots 70058 | -2/Research | Discovered exit to Access (range 22) 70061 | -2/Research | Spotted Striker 70063 | -2/Research | Spotted Striker 70080 | -2/Research | Destroyed Striker 70083 | -2/Research | Destroyed Striker 70139 | -2/Research | Entered Access 70139 | -1/Access | Evolved 2 slots: Utility x2 70296 | -1/Access | Spotted B-99 Colossus 70387 | -1/Access | Fabricated Vortex Chain Reactor? 70671 | -1/Access | Fabricated Adv. Cloaking Device (x1) 70702 | -1/Access | Build established: Scavenger-Mutant 71142 | -1/Access | Destroyed 8 combat bots 71251 | -1/Access | Discovered new exit (range 5) 71341 | -1/Access | Identified exit to Command 71609 | -1/Access | Lost 5 parts (1p2n1u1w) 71634 | -1/Access | Found Prototype Launcher 71637 | -1/Access | Found Prototype Launcher 71783 | -1/Access | Lost 5 parts (1p1n3u) 71889 | -1/Access | First assault squad dispatched 72108 | -1/Access | Found Antimissile System 72120 | -1/Access | Lost 3 parts (1n1u1w) 72189 | -1/Access | Lost 3 parts (1n2u) 72303 | -1/Access | Entered Command 72306 | -1/Command | Identified Hellfire Missile Launcher (x2) 72586 | -1/Command | First assault squad dispatched 73200 | -1/Command | Disengaged cave seal 73200 | -1/Command | Derelicts emerged from the dark tunnel 73200 | -1/Command | Welcomed Warlord to Command 73425 | -1/Command | Spotted IC-HMS(L) 73428 | -1/Command | Spotted CP-2XY(K) 73443 | -1/Command | Rewired IC-HMS(L) 73592 | -1/Command | P-80 Master assimilated allied IC-HMS(L) 73598 | -1/Command | Destroyed IC-HMS(L) 73634 | -1/Command | Spotted M Guard 73634 | -1/Command | Spotted M Guard 73634 | -1/Command | Spotted Combat Programmer 73636 | -1/Command | Spotted Combat Programmer 73645 | -1/Command | Warlord commented on Warlord statues 73656 | -1/Command | Spotted VC-BCX(L) 73659 | -1/Command | Rewired VC-BCX(L) 73663 | -1/Command | Combat Programmer assimilated allied AF-Y4N(i) 73666 | -1/Command | Allies destroyed Combat Programmer 73667 | -1/Command | Destroyed M Guard 73681 | -1/Command | All MAIN.C guards destroyed 73683 | -1/Command | Found Exp. Melee Analysis Suite 73686 | -1/Command | Found Particle Cleaver 73814 | -1/Command | Met MAIN.C 73815 | -1/Command | Hacked MAIN.C using A7's code 73830 | -1/Command | 0b10 Conduit disabled 73833 | -1/Command | MAIN.C activated Command garrisons 73838 | *** | Establishing Free Derelict Territories! Last Messages --------------- 73833_ MAIN.C knocked back. 73833_ Penetrated by Blast Slug. 73834_ 3S-MDO(L) sneak attacks. 73834_ MAIN.C reaction time slowed by virus. 73834_ BG-IEP(L) sneak attacks. 73835_ 3S-MDO(L) sneak attacks. 73835_ MAIN.C reaction time slowed by virus. 73835_ BG-IEP(L) sneak attacks. 73835_ VC-BCX(L) sneak attacks. 73836_ 3S-MDO(L) sneak attacks. 73836_ Sneak attack on MAIN.C. 73836_ MAIN.C reaction time slowed by virus. 73836_ BG-IEP(L) sneak attacks. 73836_ MAIN.C: "I hope you know you're still going to DIE HERE WITH ME!" Heavy Barrier opened. 73836_ MAIN.C destroyed. ZY-L1N: Victory! Sure there's still lots to do, but without MAIN.C at the helm 0b10 doesn't stand a chance. We've got this... Map ----- +----------------------------------------------------+ | ?????????????????????????????????????????????????? | | ?????????????????????????????????????????????????? | | ?????????????????????????????????????????????????? | | ?????????????????????????????????????????????????? | | ?????????????????????????????????????????????????? | | ?????????????????????????????????????????????????? | | ?????????????????????????????????????????????????? | | ?????????????????????????????????????????????????? | | ?????????????????????????????????????????????????? | | ?????????????????????????????????????????????????? | | ?????????????????????????????????????????????????? | | ?????????????????????????????????????????????????? | | ?????????????????????????????????????????????????? | | ?????????????????##################??????????????? | | ?????????????????""" """" #??????????????? | | ????????????????? "" #??????????????? | | ?????????????????" "" ################ | | ?????????????????""""""" / p m | | ?????????????????" """ hmpi / p | | ????????????#"" """""" p p g | | ????????????#"" """""" i ################ | | ????????????# " """""" W h #??????????????? | | ????????????# " "" mg #??????????????? | | ????????????# " " L ""#??????????????? | | ????????????#""""""""" L%LL"""""""#??????????????? | | ????????????#"" $%@" """"""#??????????????? | | ????????????# """""""""""#??????????????? | | ????????????# " " " " #??????????????? | | ????????????# " " " " #??????????????? | | ????????? " " " """" " #??????????????? | | ???????? """ " " """" #??????????????? | | ???????? " " " " #??????????????? | | ?????????#### ""?""""""" " #??????????????? | | ????????????# "?""" " """"""""#??????????????? | | ????????????# ?????"" " " " ???????????????? | | ????????????????????###########??????????????????? | | ?????????????????????????????????????????????????? | | ?????????????????????????????????????????????????? | | ?????????????????????????????????????????????????? | | ?????????????????????????????????????????????????? | | ?????????????????????????????????????????????????? | | ?????????????????????????????????????????????????? | | ?????????????????????????????????????????????????? | | ?????????????????????????????????????????????????? | | ?????????????????????????????????????????????????? | | ?????????????????????????????????????????????????? | | ?????????????????????????????????????????????????? | | ?????????????????????????????????????????????????? | | ?????????????????????????????????????????????????? | | ?????????????????????????????????????????????????? | +----------------------------------------------------+ Best States ------------- Heat Dissipation 109 Coolant Potential 100 Energy Generation 85 Energy Capacity 1515 Matter Stores 300 Matter Capacity 300 Sight Range 24 Robot Scan Range 18 Terrain Scan Density 10 Jamming Range 16 Cloak Strength 4 Corruption Block 20 Armor Coverage 1200 Resistance: KI 30 Resistance: TH 15 Resistance: EM 75 Point Defense Rating 480 Weapon Cycling 25 Evasion (%) 40 Targeting Accuracy 16 Target Analysis 8 Core Analysis 8 Recoil Reduction 6 Kinecelleration 40 Salvage Targeting 2 Offensive Hacking 34 Defensive Hacking 10 Authchip Count 1 Trap Extractor Capacity 8 Item Schematics ----------------- Huge Storage Unit | -10/Materials | Hacked Hvy. Assault Cannon | -9/Materials | Scanalyzed Imp. Light Armor Plating | -9/Materials | Scanalyzed Arm. Huge Wheel | -7/Factory | Scanalyzed Imp. Medium Armor Plating | -7/Factory | Scanalyzed Centrium Medium Armor Plating | -5/Factory | Scanalyzed Adv. KE Penetrator | -5/Factory | Scanalyzed Adv. Shield Generator | -5/Factory | Scanalyzed Hyp. Mass Driver | -4/Factory | Scanalyzed Assault Drone Bay | -4/Zhirov | Free Exp. Heat Sink | -4/Zhirov | Free Exp. Optical Array | -4/Zhirov | Free Imp. Arc Thrower | -4/Zhirov | Free Vortex Chain Reactor | -3/Testing | Scanalyzed Robot Schematics ------------------ None Fabricated ------------ Huge Storage Unit | x1 | -7/Factory Y-64 Sentinel | x2 | -4/Factory | Preloaded Hyp. Mass Driver | x2 | -4/Factory Lgt. Quantum Reactor | x2 | -3/Testing | Preloaded Vortex Chain Reactor | x1 | -1/Access | Authchip Adv. Cloaking Device | x1 | -1/Access | Preloaded Alien Tech Used ----------------- Dimensional Node Initializer Integrated Reactor Transdimensional Reconstructor Achievements -------------- None Challenges ------------ None Game ------ Seed HeartHeatBiocell Manual? 0 Play Time 06:17:07 Cumulative 1291.5 hours Start 2023.02.13 @ 04:18:24 End 2023.02.15 @ 19:30:13 Sessions 13 Manual Loads 0 Difficulty Rogue Special Mode None Game No. 904 Rogue 900 Adventurer 4 Explorer 0 Win Type 7 Total 144 Types 106/10/10/6/2/1/1/5/3 Lore% 97 Gallery% 98 Achievement% 98 Wizard Run 0 Options --------- ASCII 0 Keyboard 1 Movement Vi Keybinds 0 Fullscreen 0 Font 20/X11 Map View 76x50 Tactical HUD 1 Map Filters NONE Filters NONE Steam 1 RUN: 32a7eb1f-880c-4669-8b9c-932610f56ce0